Workbook

Sheet Primal Yield Example
F6: Example : Lamb carcase primal yield comparison between traditional and alternative cuts
H8: Carcase weight (Kg) | K8: 19.5
H9: Carcase Grade | K9: R3L
H10: Carcase Cost/ Kg | K10: 3.95
H11: Total Carcase Cost | K11: =K8*K10 -> 77.025
H18: Short Fore MPG code: Forequarter L001
D19: TRADITIONAL | O19: ALTERNATIVE
C21: Table 1 | N21: Table 2
C22: Product name | D22: Shoulder Traditional bone-in | G22: Forequarter L002 | N22: Product name | O22: Lamb Victoria Roast | Q22: Forequarter L009
C23: Primal weight | D23: 7.378 | E23: Percentage of Carcase | H23: =(D23/K8) -> 0.3783589744 | N23: Primal weight | O23: 7.576 | P23: Percentage of Carcase | S23: =(O23/K8) -> 0.3885128205
C24: Price Per Kg | D24: 3 | N24: Price Per Kg | O24: 3
C25: Wholesale cost: | D25: =+(D23*D24) -> 22.134 | N25: Wholesale cost: | O25: =(O24*O23) -> 22.728
C28: Product description | D28: MPG Code | E28: Weight (Kg) | F28: Red Meat Yield % | G28: Selling price (£/Kg) | H28: Value £ | N28: Product description | O28: MPG Code | P28: Weight (Kg) | Q28: Red Meat Yield % | R28: Selling price (£/Kg) | S28: Value£
C29: Shoulder Traditional bone-in | D29: Forequarter L002 | E29: 4.246 | F29: =(E29/D23) -> 0.575494714 | G29: 7 | H29: =(E29*G29) -> 29.722 | N29: Lamb Victoria Roast | O29: Forequarter L009 | P29: 3.348 | Q29: =(P29/O23) -> 0.4419218585 | R29: 11 | S29: =(P29*R29) -> 36.828
C30: Chunky neck chops | D30: Forequarter L037 | E30: 0.54 | F30: =(E30/D23) -> 0.07319056655 | G30: 5 | H30: =(E30*G30) -> 2.7 | N30: Knuckle | O30: Forequarter L019 | P30: 0.496 | Q30: =(P30/O23) -> 0.06546990496 | R30: 8.99 | S30: =(P30*R30) -> 4.45904
C31: Neck Fillet | D31: Forequarter L016 | E31: 0.468 | F31: =(E31/D23) -> 0.06343182434 | G31: 13.33 | H31: 6.23844 | N31: Chunky neck chops | O31: Forequarter L037 | P31: 0.458 | Q31: =(P31/O23) -> 0.06045406547 | R31: 5 | S31: 2.29
C32: 90% Visual lean lamb | D32: Trim L001 | E32: 0.246 | F32: =(E32/D23) -> 0.03334236921 | G32: 10 | H32: 2.46 | N32: 90% Visual lean lamb | O32: Trim L001 | P32: 0.814 | Q32: =(P32/O23) -> 0.1074445618 | R32: 10 | S32: 8.14
F33: =(E33/D23) -> 0 | H33: 0 | Q33: =(P33/O23) -> 0 | S33: 0
F34: =(E34/D23) -> 0 | H34: 0 | Q34: =(P34/O23) -> 0 | S34: 0
F35: =(E35/D23) -> 0 | H35: 0 | Q35: =(P35/O23) -> 0 | S35: 0
F36: =(E36/D23) -> 0 | H36: 0 | Q36: =(P36/O23) -> 0 | S36: 0
F37: =(E37/D23) -> 0 | H37: 0 | Q37: =(P37/O23) -> 0 | S37: 0
F38: =(E38/D23) -> 0 | H38: 0 | Q38: =(P38/O23) -> 0 | S38: 0
F39: =(E39/D23) -> 0 | H39: 0 | Q39: =(P39/O23) -> 0 | S39: 0
F40: =(E40/D23) -> 0 | H40: 0 | Q40: =(P40/O23) -> 0 | S40: 0
D41: Total saleable meat | E41: =SUM(E29:E40) -> 5.5 | F41: =(E41/D23) -> 0.7454594741 | O41: Total saleable meat | P41: =SUM(P29:P40) -> 5.116 | Q41: =(P41/O23) -> 0.6752903907
D42: Bone & Waste (Kg) | E42: 1.874 | F42: =(E42/D23) -> 0.2539983735 | O42: Bone & Waste (Kg) | P42: 2.45 | Q42: =(P42/O23) -> 0.3233896515
D43: Drip/Cutting loss(Kg) | E43: =(D23-E41-E42) -> 0.004 | F43: =(E43/D23) -> 0.0005421523448 | O43: Drip/Cutting loss(Kg) | P43: =(O23-P41-P42) -> 0.01 | Q43: =(P43/O23) -> 0.001319957761
E45: Total Sales Value | H45: =SUM(H29:H40) -> 41.12044 | P45: Total Sales Value | S45: =SUM(S29:S40) -> 51.71704
E46: Gross Margin | H46: =SUM(H29:H40,-D25) -> 18.98644 | P46: Gross Margin | S46: =SUM(S29:S40,-O25) -> 28.98904
E47: Gross Profit | H47: =(H46/H45) -> 0.4617275496 | P47: Gross Profit | S47: =(S46/S45) -> 0.5605316932
H49: Primal summary | M49: Value | N49: Gross Margin | O49: Profit %
H50: Table 1 | M50: =(H45) -> 41.12044 | N50: =(H46) -> 18.98644 | O50: =(H47) -> 0.4617275496
H51: Table 2 | M51: =(S45) -> 51.71704 | N51: =(S46) -> 28.98904 | O51: =(S47) -> 0.5605316932
H52: Increased Profit | M52: =(M51-M50) -> 10.5966 | N52: =(N51-N50) -> 10.0026 | O52: =SUM(O51-O50) -> 0.09880414362
H56: Middle MPG code: Loin L001
C61: Table 1 | N61: Table 2
C62: Product name | D62: Cutlets | G62: Loin L020 | N62: Product name | O62: Rack Severn Rib | R62: Loin L010
C63: Primal weight | D63: 4.906 | E63: Percentage of Carcase | H63: =(D63/K8) -> 0.2515897436 | N63: Primal weight | O63: 4.814 | P63: Percentage of Carcase | S63: =(O63/K8) -> 0.2468717949
C64: Price Per Kg | D64: 5 | N64: Price Per Kg | O64: 5
C65: Wholesale cost: | D65: =(D64*D63) -> 24.53 | N65: Wholesale cost: | O65: =(O64*O63) -> 24.07
C67: Product description | D67: MPG Code | E67: Weight (Kg) | F67: Red Meat Yield % | G67: Selling price (£/Kg) | H67: Value £ | J67: For alternative primal specifications click on the MPG codes below | N67: Product description | O67: MPG Code | P67: Weight (Kg) | Q67: Red Meat Yield % | R67: Selling price (£/Kg) | S67: Value£
C68: Cutlets | D68: Loin L020 | E68: 1.374 | F68: =(E68/D63) -> 0.2800652263 | G68: 12 | H68: =(E68*G68) -> 16.488 | N68: Rack Severn Rib | O68: Loin L010 | P68: 1.108 | Q68: =(P68/O63) -> 0.2301620274 | R68: 17 | S68: =(P68*R68) -> 18.836
C69: Premium T-bone Chops | D69: Loin L021 | E69: 1.65 | F69: =(E69/D63) -> 0.33632287 | G69: 12 | H69: =(E69*G69) -> 19.8 | N69: Premium Lamb Sirloin | O69: Loin L015 | P69: 0.684 | Q69: =(P69/O63) -> 0.1420855837 | R69: 22 | S69: 15.048
C70: Breast Square Cut | D70: Breast L002 | E70: 1.316 | F70: =(E70/D63) -> 0.2682429678 | G70: 4.89 | H70: 6.43524 | N70: Fillets | O70: Loin L026 | P70: 0.13 | Q70: =(P70/O63) -> 0.02700457 | R70: 22 | S70: 2.86
C71: 90% Visual lean lamb | D71: Trim L001 | E71: 0.046 | F71: =(E71/D63) -> 0.00937627395 | G71: 10 | H71: 0.46 | N71: Lamb Spare Rib | O71: Breast L012 | P71: 1.128 | Q71: =(P71/O63) -> 0.2343165767 | R71: 4.89 | S71: 5.51592
F72: =(E72/D63) -> 0 | H72: 0 | N72: 90% Visual lean lamb | O72: Trim L001 | P72: 0.9 | Q72: =(P72/O63) -> 0.1869547154 | R72: 10 | S72: 9
F73: =(E73/D63) -> 0 | H73: 0 | Q73: =(P73/O63) -> 0 | S73: 0
F74: =(E74/D63) -> 0 | H74: 0 | Q74: =(P74/O63) -> 0 | S74: 0
F75: =(E75/D63) -> 0 | H75: 0 | Q75: =(P75/O63) -> 0 | S75: 0
F76: =(E76/D63) -> 0 | H76: 0 | Q76: =(P76/O63) -> 0 | S76: 0
F77: =(E77/D63) -> 0 | H77: 0 | Q77: =(P77/O63) -> 0 | S77: 0
F78: =(E78/D63) -> 0 | H78: 0 | Q78: =(P78/O63) -> 0 | S78: 0
F79: =(E79/D63) -> 0 | H79: 0 | Q79: =(P79/O63) -> 0 | S79: 0
D80: Total saleable meat | E80: =SUM(E68:E79) -> 4.386 | F80: =(E80/D63) -> 0.894007338 | O80: Total saleable meat | P80: =SUM(P68:P79) -> 3.95 | Q80: =(P80/O63) -> 0.8205234732
D81: Bone & Waste (Kg) | E81: 0.496 | F81: =(E81/D63) -> 0.101100693 | O81: Bone & Waste (Kg) | P81: 0.836 | Q81: =(P81/O63) -> 0.1736601579
D82: Drip/Cutting loss(Kg) | E82: =(D63-E80-E81) -> 0.024 | F82: =(E82/D63) -> 0.004891969018 | O82: Drip/Cutting loss(Kg) | P82: =(O63-P80-P81) -> 0.028 | Q82: =(P82/O63) -> 0.005816368924
E84: Total Sales Value | H84: =SUM(H68:H79) -> 43.18324 | P84: Total Sales Value | S84: =SUM(S68:S79) -> 51.25992
E85: Gross Margin | H85: =SUM(H68:H79,-D65) -> 18.65324 | P85: Gross Margin | S85: =SUM(S68:S79,-O65) -> 27.18992
E86: Gross Profit | H86: =(H85/H84) -> 0.4319555457 | P86: Gross Profit | S86: =(S85/S84) -> 0.5304323534
H88: Primal summary | M88: Value | N88: Gross Margin | O88: Profit %
H89: Table 1 | M89: =(H84) -> 43.18324 | N89: =(H85) -> 18.65324 | O89: =(H86) -> 0.4319555457
H90: Table 2 | M90: =(S84) -> 51.25992 | N90: =(S85) -> 27.18992 | O90: =(S86) -> 0.5304323534
H91: Increased Profit | M91: =(M90-M89) -> 8.07668 | N91: =(N90-N89) -> 8.53668 | O91: =SUM(O90-O89) -> 0.09847680767
H95: Legs with Chump MPG code: Leg L029
C100: Table 1 | N100: Table 2
C101: Product name | D101: Leg Joints Traditional | G101: Leg L006 | N101: Product name | O101: Topside Roast | Q101: Leg L010
C102: Primal weight | D102: 6.48 | E102: Percentage of Carcase | H102: =(D102/K8) -> 0.3323076923 | N102: Primal weight | O102: 6.82 | P102: Percentage of Carcase | S102: =(O102/K8) -> 0.3497435897
C103: Price Per Kg | D103: 6 | N103: Price Per Kg | O103: 6
C104: Wholesale cost: | D104: =(D103*D102) -> 38.88 | N104: Wholesale cost: | O104: =(O103*O102) -> 40.92
C106: Product description | D106: MPG Code | E106: Weight (Kg) | F106: Red Meat Yield % | G106: Selling price (£/Kg) | H106: Value £ | J106: For alternative primal specifications click on the MPG codes below | N106: Product description | O106: MPG Code | P106: Weight (Kg) | Q106: Red Meat Yield % | R106: Selling price (£/Kg) | S106: Value£
C107: Leg Joints Traditional | D107: Leg L006 | E107: 4.282 | F107: =(E107/D102) -> 0.6608024691 | G107: 11 | H107: =(E107*G107) -> 47.102 | N107: Topside Roast | O107: Leg L010 | P107: 1.048 | Q107: =(P107/O102) -> 0.1536656891 | R107: 17.5 | S107: =(P107*R107) -> 18.34
C108: Chump Steaks-boneless | D108: Leg L021 | E108: 0.734 | F108: =(E108/D102) -> 0.1132716049 | G108: 17 | H108: =(E108*G108) -> 12.478 | N108: Leg Anisette Joint | O108: Leg L014 | P108: 0.994 | Q108: =(P108/O102) -> 0.1457478006 | R108: 12 | S108: 11.928
C109: 90% Visual lean lamb | D109: Trim L001 | E109: 0.26 | F109: =(E109/D102) -> 0.04012345679 | G109: 10 | H109: 2.6 | N109: Mini Roast Thick Flank | O109: Leg L013 | P109: 0.74 | Q109: =(P109/O102) -> 0.1085043988 | R109: 17.5 | S109: 12.95
F110: =(E110/D102) -> 0 | H110: 0 | N110: Rump Portion boneless | O110: Leg L030 | P110: 0.634 | Q110: =(P110/O102) -> 0.09296187683 | R110: 12 | S110: 7.608
F111: =(E111/D102) -> 0 | H111: 0 | N111: Lamb Chateaubriand | O111: Leg L038 | P111: 0.196 | Q111: =(P111/O102) -> 0.02873900293 | R111: 22 | S111: 4.312
F112: =(E112/D102) -> 0 | H112: 0 | N112: 90% Visual lean lamb | O112: Trim L001 | P112: 0.858 | Q112: =(P112/O102) -> 0.1258064516 | R112: 10 | S112: 8.58
F113: =(E113/D102) -> 0 | H113: 0 | N113: Shank French Trimmed | O113: Leg L023 | P113: 0.744 | Q113: =(P113/O102) -> 0.1090909091 | R113: 11 | S113: 8.184
F114: =(E114/D102) -> 0 | H114: 0 | Q114: =(P114/O102) -> 0 | S114: 0
F115: =(E115/D102) -> 0 | H115: 0 | Q115: =(P115/O102) -> 0 | S115: 0
F116: =(E116/D102) -> 0 | H116: 0 | Q116: =(P116/O102) -> 0 | S116: 0
F117: =(E117/D102) -> 0 | H117: 0 | Q117: =(P117/O102) -> 0 | S117: 0
F118: =(E118/D102) -> 0 | H118: 0 | Q118: =(P118/O102) -> 0 | S118: 0
D119: Total saleable meat | E119: =SUM(E107:E118) -> 5.276 | F119: =(E119/D102) -> 0.8141975309 | O119: Total saleable meat | P119: =SUM(P107:P118) -> 5.214 | Q119: =(P119/O102) -> 0.764516129
D120: Bone & Waste (Kg) | E120: 1.198 | F120: =(E120/D102) -> 0.1848765432 | O120: Bone & Waste (Kg) | P120: 1.594 | Q120: =(P120/O102) -> 0.2337243402
D121: Drip/Cutting loss(Kg) | E121: =(D102-E119-E120) -> 0.006 | F121: =(E121/D102) -> 0.0009259259259 | O121: Drip/Cutting loss(Kg) | P121: =(O102-P119-P120) -> 0.012 | Q121: =(P121/O102) -> 0.001759530792
E123: Total Sales Value | H123: =SUM(H107:H118) -> 62.18 | P123: Total Sales Value | S123: =SUM(S107:S118) -> 71.902
E124: Gross Margin | H124: =SUM(H107:H118,-D104) -> 23.3 | P124: Gross Margin | S124: =SUM(S107:S118,-O104) -> 30.982
E125: Gross Profit | H125: =(H124/H123) -> 0.374718559 | P125: Gross Profit | S125: =(S124/S123) -> 0.4308920475
H127: Primal summary | M127: Value | N127: Gross Margin | O127: Profit %
H128: Table 1 | M128: =(H123) -> 62.18 | N128: =(H124) -> 23.3 | O128: =(H125) -> 0.374718559
H129: Table 2 | M129: =(S123) -> 71.902 | N129: =(S124) -> 30.982 | O129: =(S125) -> 0.4308920475
H130: Increased Profit | M130: =(M129-M128) -> 9.722 | N130: =(N129-N128) -> 7.682 | O130: =SUM(O129-O128) -> 0.05617348849
C136: Traditional | N136: Alternative
C137: Total Red Meat (Kg) | E137: =(E41+E80+E119) -> 15.162 | N137: Total Red Meat (Kg) | P137: =(P41+P80+P119) -> 14.28
C138: Total Bone & Waste (kg) | E138: =(E120+E81+E42) -> 3.568 | N138: Total Bone & Waste (kg) | P138: =(P120+P81+P42) -> 4.88
C139: Total Drip Cutting loss (kg) | E139: =(K8-E137-E138) -> 0.77 | N139: Total Drip Cutting loss (kg) | P139: =(K8-P137-P138) -> 0.34
C140: Total Red Meat Yield % | E140: =(E137/K8) -> 0.7775384615 | N140: Total Red Meat Yield % | P140: =(P137/K8) -> 0.7323076923
C141: Total Bone & Waste (%) | E141: =(E138/K8) -> 0.182974359 | N141: Total Bone & Waste (%) | P141: =(P138/K8) -> 0.2502564103
C142: Waste Fat (%) | E142: =(#REF!/K8) ->  | N142: Waste Fat (%) | P142: =(#REF!/#REF!) -> 
C143: Drip/Cutting Loss (%) | E143: =(E139/K8) -> 0.03948717949 | N143: Drip/Cutting Loss (%) | P143: =(P139/K8) -> 0.01743589744
C144: Reconciled Yield | E144: =SUM(E140+E141+E143) -> 1 | N144: Reconciled Yield | P144: =SUM(P140+P141+P143) -> 1
C147: Total Carcase Cost | E147: =K11 -> 77.025 | N147: Total Carcase Cost | P147: =K11 -> 77.025
C148: Totals Sales Value | E148: =(H123+H84+H45) -> 146.48368 | N148: Totals Sales Value | P148: =(S123+S84+S45) -> 174.87896
C149: Totals Gross Margin | E149: =E148-(D104+D65+D25) -> 60.93968 | N149: Totals Gross Margin | P149: =P148-(S124+S85+S46) -> 87.718
C150: Totals Gross Profit | E150: =(E149/E148) -> 0.4160168559 | N150: Totals Gross Profit | P150: =(P149/P148) -> 0.5015926444
G151: Beef yield/costing summary
H152: Total Sales Value | I152: Gross Margin | K152: Profit %
G153: Traditional | H153: =E148 -> 146.48368 | I153: =E149 -> 60.93968 | K153: =E150 -> 0.4160168559
G154: Alternative | H154: =P148 -> 174.87896 | I154: =P149 -> 87.718 | K154: =P150 -> 0.5015926444
G155: Increased Profit | H155: =H154-H153 -> 28.39528 | I155: =I154-I153 -> 26.77832 | K155: =SUM(K154-K153) -> 0.08557578848

Sheet Side Yield comparison (hidden)
F3: Example : Beef carcase yield comparison between traditional and alternative cuts
H5: Carcase weight (Kg) | K5: 165.424
H6: Carcase Grade | K6: R4L
H7: Carcase Cost/ Kg | K7: 3.58
H8: Total Carcase Cost | K8: =K5*K7 -> 592.21792
H15: Topside- EBLEX Code: Topside B001
D16: TRADITIONAL | O16: ALTERNATIVE
C18: Table 1 | N18: Table 2
C19: Product name | D19: Topside-Joint Traditional | F19: Topside B004 | N19: Product name | O19: Ranch Steaks | P19: Topside B009
C20: Primal weight | D20: 11.284 | E20: Percentage of Carcase | H20: =(D20/K5) -> 0.06821259309 | N20: Primal weight | O20: 11.284 | P20: Percentage of Carcase | S20: =(O20/K5) -> 0.06821259309
C21: Price Per Kg | D21: 5.25 | N21: Price Per Kg | O21: 5.25
C22: Wholesale cost: | D22: =(D21*D20) -> 59.241 | N22: Wholesale cost: | O22: =(O21*O20) -> 59.241
C25: Product description | D25: Eblex code | E25: Weight (Kg) | F25: Red Meat Yield % | G25: Selling price (£/Kg) | H25: Value £ | J25: For alternative primal specifications click on the Eblex codes below | N25: Product description | O25: Eblex code | P25: Weight (Kg) | Q25: Red Meat Yield % | R25: Selling price (£/Kg) | S25: Value£
C26: Topside Joints | D26: Topside B004 | E26: 10.17 | F26: =(E26/D20) -> 0.9012761432 | G26: 12.96 | H26: =(E26*G26) -> 131.8032 | N26: Ranch Steaks | O26: Topside B009 | P26: =(Q26*O20) -> 5.9207148 | Q26: 0.5247 | R26: 14.86 | S26: =(P26*R26) -> 87.98182193
C27: Diced 98%vl | D27: Dice B001 | E27: 0.306 | F27: =(E27/D20) -> 0.02711804325 | G27: 10 | H27: =(E27*G27) -> 3.06 | N27: Tender Top Steak | O27: Topside B015 | P27: =(Q27*O20) -> 1.7794868 | Q27: 0.1577 | R27: 14.86 | S27: =(P27*R27) -> 26.44317385
C28: Trim 85% Visual Lean | D28: Trim B008 | E28: 0.664 | F28: =(E28/D20) -> 0.05884438143 | G28: 7 | H28: 4.648 | J28: Topside Mini Joints with added fat | N28: Diced 98%vl | O28: Dice B001 | P28: =(Q28*O20) -> 2.352714 | Q28: 0.2085 | R28: 10 | S28: 23.52714
H29: 0 | J29: Premium Topside Joints | N29: Trim 85% Visual Lean | O29: Trim B008 | P29: =(Q29*O20) -> 1.1543532 | Q29: 0.1023 | R29: 7 | S29: 8.0804724
H30: 0 | Q30: =(P30/O20) -> 0 | S30: 0
H31: 0 | Q31: =(P31/O20) -> 0 | S31: 0
H32: 0 | Q32: =(P32/O20) -> 0 | S32: 0
H33: 0 | Q33: =(P33/O20) -> 0 | S33: 0
H34: 0 | Q34: =(P34/O20) -> 0 | S34: 0
H35: 0 | Q35: =(P35/O20) -> 0 | S35: 0
H36: 0 | Q36: =(P36/O20) -> 0 | S36: 0
H37: 0 | Q37: =(P37/O20) -> 0 | S37: 0
D38: Total saleable meat | E38: =SUM(E26:E37) -> 11.14 | F38: =(E38/D20) -> 0.9872385679 | O38: Total saleable meat | P38: =SUM(P26:P37) -> 11.2072688 | Q38: =(P38/O20) -> 0.9932
D39: Bone & Waste (Kg) | E39: 0.132 | F39: =(E39/D20) -> 0.01169797944 | O39: Bone & Waste (Kg) | P39: =(Q39*O20) -> 0.067704 | Q39: 0.006
D40: Drip/Cutting loss(Kg) | E40: =(D20-E38-E39) -> 0.012 | F40: =(E40/D20) -> 0.001063452676 | O40: Drip/Cutting loss(Kg) | P40: =(Q40*O20) -> 0.0090272 | Q40: 0.0008
E42: Total Sales Value | H42: =SUM(H26:H37) -> 139.5112 | P42: Total Sales Value | S42: =SUM(S26:S37) -> 146.0326082
E43: Gross Margin | H43: =SUM(H26:H37,-D22) -> 80.2702 | P43: Gross Margin | S43: =SUM(S26:S37,-O22) -> 86.79160818
E44: Gross Profit | H44: =(H43/H42) -> 0.5753674257 | P44: Gross Profit | S44: =(S43/S42) -> 0.5943303298
H46: Primal summary | M46: Value | N46: Gross Margin | O46: Profit %
H47: Table 1 | M47: =(H42) -> 139.5112 | N47: =(H43) -> 80.2702 | O47: =(H44) -> 0.5753674257
H48: Table 2 | M48: =(S42) -> 146.0326082 | N48: =(S43) -> 86.79160818 | O48: =(S44) -> 0.5943303298
H49: Increased Profit | M49: =(M48-M47) -> 6.521408176 | N49: =(N48-N47) -> 6.521408176 | O49: =SUM(O48-O47) -> 0.01896290408
H53: Silverside- EBLEX Code: Silverside B001
C58: Table 1 | N58: Table 2
C59: Product name | D59: Silverside Joint with added fat | G59: Silverside B002 | N59: Product name | O59: Silverside Mini Joints with added fat | R59: Silverside B003
C60: Primal weight | D60: 9.384 | E60: Percentage of Carcase | H60: =(D60/K5) -> 0.05672695619 | N60: Primal weight | O60: 9.384 | P60: Percentage of Carcase | S60: =(O60/K5) -> 0.05672695619
C61: Price Per Kg | D61: 4.85 | N61: Price Per Kg | O61: 4.85
C62: Wholesale cost: | D62: =(D61*D60) -> 45.5124 | N62: Wholesale cost: | O62: =(O61*O60) -> 45.5124
C64: Product description | D64: Eblex code | E64: Weight (Kg) | F64: Red Meat Yield % | G64: Selling price (£/Kg) | H64: Value £ | J64: For alternative primal specifications click on the Eblex codes below | N64: Product description | O64: Eblex code | P64: Weight (Kg) | Q64: Red Meat Yield % | R64: Selling price (£/Kg) | S64: Value£
C65: Silverside Joints | D65: Silverside B002 | E65: 8.876 | F65: =(E65/D60) -> 0.9458653026 | G65: 11.5 | H65: =(E65*G65) -> 102.074 | N65: Silverside Mini Joints(with added fat) | O65: Silverside B003 | P65: =(Q65*O60) -> 5.6979648 | Q65: 0.6072 | R65: 11.5 | S65: =(P65*R65) -> 65.5265952
C66: Trim 85% Visual Lean | D66: Trim B008 | E66: 0.426 | F66: =(E66/D60) -> 0.04539641944 | G66: 7 | H66: =(E66*G66) -> 2.982 | N66: Escallops(Salmon Cut) | O66: Silverside B004 | P66: =(Q66*O60) -> 2.177088 | Q66: 0.232 | R66: 14.86 | S66: 32.35152768
F67: =(E67/D60) -> 0 | H67: 0 | N67: Diced 98%vl | O67: Dice B001 | P67: =(Q67*O60) -> 0.2543064 | Q67: 0.0271 | R67: 10 | S67: 2.543064
F68: =(E68/D60) -> 0 | H68: 0 | N68: Trim 85% Visual Lean | O68: Trim B008 | P68: =(Q68*O60) -> 0.9749976 | Q68: 0.1039 | R68: 7 | S68: 6.8249832
F69: =(E69/D60) -> 0 | H69: 0 | Q69: =(P69/O60) -> 0 | S69: 0
F70: =(E70/D60) -> 0 | H70: 0 | Q70: =(P70/O60) -> 0 | S70: 0
F71: =(E71/D60) -> 0 | H71: 0 | Q71: =(P71/O60) -> 0 | S71: 0
F72: =(E72/D60) -> 0 | H72: 0 | Q72: =(P72/O60) -> 0 | S72: 0
F73: =(E73/D60) -> 0 | H73: 0 | Q73: =(P73/O60) -> 0 | S73: 0
F74: =(E74/D60) -> 0 | H74: 0 | Q74: =(P74/O60) -> 0 | S74: 0
F75: =(E75/D60) -> 0 | H75: 0 | Q75: =(P75/O60) -> 0 | S75: 0
F76: =(E76/D60) -> 0 | H76: 0 | Q76: =(P76/O60) -> 0 | S76: 0
D77: Total saleable meat | E77: =SUM(E65:E76) -> 9.302 | F77: =(E77/D60) -> 0.9912617221 | O77: Total saleable meat | P77: =SUM(P65:P76) -> 9.1043568 | Q77: =(P77/O60) -> 0.9702
D78: Bone & Waste (Kg) | E78: 0.04 | F78: =(E78/D60) -> 0.004262574595 | O78: Bone & Waste (Kg) | P78: =(Q78*O60) -> 0.276828 | Q78: 0.0295
D79: Drip/Cutting loss(Kg) | E79: =(D60-E77-E78) -> 0.042 | F79: =(E79/D60) -> 0.004475703325 | O79: Drip/Cutting loss(Kg) | P79: =(Q79*O60) -> 0.0018768 | Q79: 0.0002
E81: Total Sales Value | H81: =SUM(H65:H76) -> 105.056 | P81: Total Sales Value | S81: =SUM(S65:S76) -> 107.2461701
E82: Gross Margin | H82: =SUM(H65:H76,-D62) -> 59.5436 | P82: Gross Margin | S82: =SUM(S65:S76,-O62) -> 61.73377008
E83: Gross Profit | H83: =(H82/H81) -> 0.5667796223 | P83: Gross Profit | S83: =(S82/S81) -> 0.5756268036
H85: Primal summary | M85: Value | N85: Gross Margin | O85: Profit %
H86: Table 1 | M86: =(H81) -> 105.056 | N86: =(H82) -> 59.5436 | O86: =(H83) -> 0.5667796223
H87: Table 2 | M87: =(S81) -> 107.2461701 | N87: =(S82) -> 61.73377008 | O87: =(S83) -> 0.5756268036
H88: Increased Profit | M88: =(M87-M86) -> 2.19017008 | N88: =(N87-N86) -> 2.19017008 | O88: =SUM(O87-O86) -> 0.008847181289
H92: Heel Muscle- EBLEX Code: Leg B001
C97: Table 1 | N97: Table 2
C98: Product name | D98: Dice 98% Visual Lean | G98: Leg B001 | N98: Product name | O98: Pavé(Heel Muscle) | R98: Leg B002
C99: Primal weight | D99: 2.486 | E99: Percentage of Carcase | H99: =(D99/K5) -> 0.01502804913 | N99: Primal weight | O99: 2.486 | P99: Percentage of Carcase | S99: =(O99/K5) -> 0.01502804913
C100: Price Per Kg | D100: 3.25 | N100: Price Per Kg | O100: 3.25
C101: Wholesale cost: | D101: =(D100*D99) -> 8.0795 | N101: Wholesale cost: | O101: =(O100*O99) -> 8.0795
C103: Product description | D103: Eblex code | E103: Weight (Kg) | F103: Red Meat Yield % | G103: Selling price (£/Kg) | H103: Value £ | J103: For alternative primal specifications click on the Eblex codes below | N103: Product description | O103: Eblex code | P103: Weight (Kg) | Q103: Red Meat Yield % | R103: Selling price (£/Kg) | S103: Value£
C104: Dice 98% Visual Lean | D104: DiceB001 | E104: 1.558 | F104: =(E104/D99) -> 0.6267095736 | G104: 10 | H104: =(E104*G104) -> 15.58 | N104: Pavé(Heel Muscle) | O104: Leg B002 | P104: =SUM(Q104*O99) -> 0.794277 | Q104: 0.3195 | R104: 14.86 | S104: =(P104*R104) -> 11.80295622
C105: Trim 85% Visual Lean | D105: Trim B008 | E105: 0.756 | F105: =(E105/D99) -> 0.3041029767 | G105: 7 | H105: =(E105*G105) -> 5.292 | N105: Dice 98% Visual Lean | O105: DiceB001 | P105: =SUM(Q105*O99) -> 0.3659392 | Q105: 0.1472 | R105: 10 | S105: 3.659392
F106: =(E106/D99) -> 0 | H106: 0 | N106: Trim 85% Visual Lean | O106: Trim B008 | P106: =(Q106*O99) -> 1.172149 | Q106: 0.4715 | R106: 7 | S106: 8.205043
F107: =(E107/D99) -> 0 | H107: 0 | Q107: =(P107/O99) -> 0 | S107: 0
F108: =(E108/D99) -> 0 | H108: 0 | Q108: =(P108/O99) -> 0 | S108: 0
F109: =(E109/D99) -> 0 | H109: 0 | Q109: =(P109/O99) -> 0 | S109: 0
F110: =(E110/D99) -> 0 | H110: 0 | Q110: =(P110/O99) -> 0 | S110: 0
F111: =(E111/D99) -> 0 | H111: 0 | Q111: =(P111/O99) -> 0 | S111: 0
F112: =(E112/D99) -> 0 | H112: 0 | Q112: =(P112/O99) -> 0 | S112: 0
F113: =(E113/D99) -> 0 | H113: 0 | Q113: =(P113/O99) -> 0 | S113: 0
F114: =(E114/D99) -> 0 | H114: 0 | Q114: =(P114/O99) -> 0 | S114: 0
F115: =(E115/D99) -> 0 | H115: 0 | Q115: =(P115/O99) -> 0 | S115: 0
D116: Total saleable meat | E116: =SUM(E104:E115) -> 2.314 | F116: =(E116/D99) -> 0.9308125503 | O116: Total saleable meat | P116: =SUM(P104:P115) -> 2.3323652 | Q116: =(P116/O99) -> 0.9382
D117: Bone & Waste (Kg) | E117: 0.166 | F117: =(E117/D99) -> 0.06677393403 | O117: Bone & Waste (Kg) | P117: =(Q117*O99) -> 0.1173392 | Q117: 0.0472
D118: Drip/Cutting loss(Kg) | E118: =(D99-E116-E117) -> 0.006 | F118: =(E118/D99) -> 0.002413515688 | O118: Drip/Cutting loss(Kg) | P118: =(Q118*O99) -> 0.0362956 | Q118: 0.0146
E120: Total Sales Value | H120: =SUM(H104:H115) -> 20.872 | P120: Total Sales Value | S120: =SUM(S104:S115) -> 23.66739122
E121: Gross Margin | H121: =SUM(H104:H115,-D101) -> 12.7925 | P121: Gross Margin | S121: =SUM(S104:S115,-O101) -> 15.58789122
E122: Gross Profit | H122: =(H121/H120) -> 0.612902453 | P122: Gross Profit | S122: =(S121/S120) -> 0.6586231273
H124: Primal summary | M124: Value | N124: Gross Margin | O124: Profit %
H125: Table 1 | M125: =(H120) -> 20.872 | N125: =(H121) -> 12.7925 | O125: =(H122) -> 0.612902453
H126: Table 2 | M126: =(S120) -> 23.66739122 | N126: =(S121) -> 15.58789122 | O126: =(S122) -> 0.6586231273
H127: Increased Profit | M127: =(M126-M125) -> 2.79539122 | N127: =(N126-N125) -> 2.79539122 | O127: =SUM(O126-O125) -> 0.04572067424
H131: Thick Flank- EBLEX Code: Thick Flank B001
C136: Table 1 | N136: Table 2
C137: Product name | D137: Thick Flank Joints | G137: Thick Flank B002 | N137: Product name | O137: Thick Flank Seam Cut | R137: Thick flank B005
C138: Primal weight | D138: 6.586 | E138: Percentage of Carcase | H138: =(D138/K5) -> 0.03981284457 | N138: Primal weight | O138: 6.586 | P138: Percentage of Carcase | S138: =(O138/K5) -> 0.03981284457
C139: Price Per Kg | D139: 4.2 | N139: Price Per Kg | O139: 4.2
C140: Wholesale cost: | D140: =(D139*D138) -> 27.6612 | N140: Wholesale cost: | O140: =(O139*O138) -> 27.6612
C142: Product description | D142: Eblex code | E142: Weight (Kg) | F142: Red Meat Yield % | G142: Selling price (£/Kg) | H142: Value £ | J142: For alternative primal specifications click on the Eblex codes below | N142: Product description | O142: Eblex code | P142: Weight (Kg) | Q142: Red Meat Yield % | R142: Selling price (£/Kg) | S142: Value£
C143: Thick Flank Joints | D143: Thick flank B002 | E143: 6.166 | F143: =(E143/D138) -> 0.9362283632 | G143: 8 | H143: =(E143*G143) -> 49.328 | N143: Centre Cut Steaks | O143: Thick Flank B005 | P143: =(Q143*O138) -> 2.1924794 | Q143: 0.3329 | R143: 14.86 | S143: =(P143*R143) -> 32.58024388
C144: Trim 85% Visual Lean | D144: Trim B008 | E144: 0.266 | F144: =(E144/D138) -> 0.04038870331 | G144: 7 | H144: =(E144*G144) -> 1.862 | N144: Escallops(Thick Flank) | O144: Thick Flank B005 | P144: =(Q144*O138) -> 2.0403428 | Q144: 0.3098 | R144: 14.86 | S144: 30.31949401
F145: =(E145/D138) -> 0 | H145: 0 | N145: Pavé(Thick Flank) | O145: Thick Flank B007 | P145: =(Q145*O138) -> 0.4998774 | Q145: 0.0759 | R145: 14.86 | S145: 7.428178164
F146: =(E146/D138) -> 0 | H146: 0 | N146: Dice 98% Visual Lean | O146: DiceB001 | P146: =(Q146*O138) -> 0.4781436 | Q146: 0.0726 | R146: 10 | S146: 4.781436
F147: =(E147/D138) -> 0 | H147: 0 | N147: Trim 85% Visual Lean | O147: Trim B008 | P147: =(Q147*O138) -> 1.1703322 | Q147: 0.1777 | R147: 7 | S147: 8.1923254
F148: =(E148/D138) -> 0 | H148: 0 | Q148: =(P148/O138) -> 0 | S148: 0
F149: =(E149/D138) -> 0 | H149: 0 | Q149: =(P149/O138) -> 0 | S149: 0
F150: =(E150/D138) -> 0 | H150: 0 | Q150: =(P150/O138) -> 0 | S150: 0
F151: =(E151/D138) -> 0 | H151: 0 | Q151: =(P151/O138) -> 0 | S151: 0
F152: =(E152/D138) -> 0 | H152: 0 | Q152: =(P152/O138) -> 0 | S152: 0
F153: =(E153/D138) -> 0 | H153: 0 | Q153: =(P153/O138) -> 0 | S153: 0
F154: =(E154/D138) -> 0 | H154: 0 | Q154: =(P154/O138) -> 0 | S154: 0
D155: Total saleable meat | E155: =SUM(E143:E154) -> 6.432 | F155: =(E155/D138) -> 0.9766170665 | O155: Total saleable meat | P155: =SUM(P143:P154) -> 6.3811754 | Q155: =(P155/O138) -> 0.9689
D156: Bone & Waste (Kg) | E156: 0.148 | F156: =(E156/D138) -> 0.02247191011 | O156: Bone & Waste (Kg) | P156: =(Q156*O138) -> 0.1462092 | Q156: 0.0222
D157: Drip/Cutting loss(Kg) | E157: =(D138-E155-E156) -> 0.006 | F157: =(E157/D138) -> 0.0009110233829 | O157: Drip/Cutting loss(Kg) | P157: =(Q157*O138) -> 0.0586154 | Q157: 0.0089
E159: Total Sales Value | H159: =SUM(H143:H154) -> 51.19 | P159: Total Sales Value | S159: =SUM(S143:S154) -> 83.30167746
E160: Gross Margin | H160: =SUM(H143:H154,-D140) -> 23.5288 | P160: Gross Margin | S160: =SUM(S143:S154,-O140) -> 55.64047746
E161: Gross Profit | H161: =(H160/H159) -> 0.4596366478 | P161: Gross Profit | S161: =(S160/S159) -> 0.66793946
H163: Primal summary | M163: Value | N163: Gross Margin | O163: Profit %
H164: Table 1 | M164: =(H159) -> 51.19 | N164: =(H160) -> 23.5288 | O164: =(H161) -> 0.4596366478
H165: Table 2 | M165: =(S159) -> 83.30167746 | N165: =(S160) -> 55.64047746 | O165: =(S161) -> 0.66793946
H166: Increased Profit | M166: =(M165-M164) -> 32.11167746 | N166: =(N165-N164) -> 32.11167746 | O166: =SUM(O165-O164) -> 0.2083028122
H170: D Rump (without tail)- EBLEX Code: Rump B004
C175: Table 1 | N175: Table 2
C176: Product name | D176: Traditional Rump Steaks | G176: Rump B006 | N176: Product name | O176: Premium Prime Rump Steak | R176: Rump B003
C177: Primal weight | D177: 5.204 | E177: Percentage of Carcase | H177: =(D177/K5) -> 0.03145855499 | N177: Primal weight | O177: 5.204 | P177: Percentage of Carcase | S177: =(O177/K5) -> 0.03145855499
C178: Price Per Kg | D178: 6.5 | N178: Price Per Kg | O178: 6.5
C179: Wholesale cost: | D179: =(D178*D177) -> 33.826 | N179: Wholesale cost: | O179: =(O178*O177) -> 33.826
C181: Product description | D181: Eblex code | E181: Weight (Kg) | F181: Red Meat Yield % | G181: Selling price (£/Kg) | H181: Value £ | J181: For alternative primal specifications click on the Eblex codes below | N181: Product description | O181: Eblex code | P181: Weight (Kg) | Q181: Red Meat Yield % | R181: Selling price (£/Kg) | S181: Value£
C182: Traditional Rump Steaks | D182: Rump B006 | E182: 4.984 | F182: =(E182/D177) -> 0.9577248271 | G182: 15 | H182: =(E182*G182) -> 74.76 | N182: Prime Rump Steak | O182: Rump B003 | P182: =(Q182*O177) -> 2.32879 | Q182: 0.4475 | R182: 17 | S182: =(P182*R182) -> 39.58943
C183: Trim 85% Visual Lean | D183: Trim B008 | E183: 0.152 | F183: =(E183/D177) -> 0.02920830131 | G183: 7 | H183: =(E183*G183) -> 1.064 | N183: Bistro Rump Steak | O183: Rump B003 | P183: =(Q183*O177) -> 1.1381148 | Q183: 0.2187 | R183: 23 | S183: 26.1766404
F184: =(E184/D177) -> 0 | H184: 0 | N184: Picanha Steak | O184: Rump B013 | P184: =(Q184*O177) -> 0.8919656 | Q184: 0.1714 | R184: 17 | S184: 15.1634152
F185: =(E185/D177) -> 0 | H185: 0 | N185: Rump Burger Trim | P185: =(Q185*O177) -> 0.5292468 | Q185: 0.1017 | R185: 15 | S185: 7.938702
F186: =(E186/D177) -> 0 | H186: 0 | Q186: =(P186/O177) -> 0 | S186: 0
F187: =(E187/D177) -> 0 | H187: 0 | Q187: =(P187/O177) -> 0 | S187: 0
F188: =(E188/D177) -> 0 | H188: 0 | Q188: =(P188/O177) -> 0 | S188: 0
F189: =(E189/D177) -> 0 | H189: 0 | Q189: =(P189/O177) -> 0 | S189: 0
F190: =(E190/D177) -> 0 | H190: 0 | Q190: =(P190/O177) -> 0 | S190: 0
F191: =(E191/D177) -> 0 | H191: 0 | Q191: =(P191/O177) -> 0 | S191: 0
F192: =(E192/D177) -> 0 | H192: 0 | Q192: =(P192/O177) -> 0 | S192: 0
F193: =(E193/D177) -> 0 | H193: 0 | Q193: =(P193/O177) -> 0 | S193: 0
D194: Total saleable meat | E194: =SUM(E182:E193) -> 5.136 | F194: =(E194/D177) -> 0.9869331284 | O194: Total saleable meat | P194: =SUM(P182:P193) -> 4.8881172 | Q194: =(P194/O177) -> 0.9393
D195: Bone & Waste (Kg) | E195: 0.062 | F195: =(E195/D177) -> 0.01191391238 | O195: Bone & Waste (Kg) | P195: =(Q195*O177) -> 0.3138012 | Q195: 0.0603
D196: Drip/Cutting loss(Kg) | E196: =(D177-E194-E195) -> 0.006 | F196: =(E196/D177) -> 0.001152959262 | O196: Drip/Cutting loss(Kg) | P196: =(Q196*O177) -> 0.0020816 | Q196: 0.0004
E198: Total Sales Value | H198: =SUM(H182:H193) -> 75.824 | P198: Total Sales Value | S198: =SUM(S182:S193) -> 88.8681876
E199: Gross Margin | H199: =SUM(H182:H193,-D179) -> 41.998 | P199: Gross Margin | S199: =SUM(S182:S193,-O179) -> 55.0421876
E200: Gross Profit | H200: =(H199/H198) -> 0.553887951 | P200: Gross Profit | S200: =(S199/S198) -> 0.619368855
H202: Primal summary | M202: Value | N202: Gross Margin | O202: Profit %
H203: Table 1 | M203: =(H198) -> 75.824 | N203: =(H199) -> 41.998 | O203: =(H200) -> 0.553887951
H204: Table 2 | M204: =(S198) -> 88.8681876 | N204: =(S199) -> 55.0421876 | O204: =(S200) -> 0.619368855
H205: Increased Profit | M205: =(M204-M203) -> 13.0441876 | N205: =(N204-N203) -> 13.0441876 | O205: =SUM(O204-O203) -> 0.06548090396
H209: Rump Tail- EBLEX Code: Rump B012
C214: Table 1 | N214: Table 2
C215: Product name | D215: Dice 98% Visual Lean | G215: Dice B001 | N215: Product name | O215: Rump Tail/Tri Tip Mini Joint | R215: Rump B020
C216: Primal weight | D216: 1.67 | E216: Percentage of Carcase | H216: =(D216/K5) -> 0.01009527034 | N216: Primal weight | O216: 1.564 | P216: Percentage of Carcase | S216: =(O216/K5) -> 0.009454492698
C217: Price Per Kg | D217: 5 | N217: Price Per Kg | O217: 5
C218: Wholesale cost: | D218: =(D217*D216) -> 8.35 | N218: Wholesale cost: | O218: =(O217*O216) -> 7.82
C220: Product description | D220: Eblex code | E220: Weight (Kg) | F220: Red Meat Yield % | G220: Selling price (£/Kg) | H220: Value £ | J220: For alternative primal specifications click on the Eblex codes below | N220: Product description | O220: Eblex code | P220: Weight (Kg) | Q220: Red Meat Yield % | R220: Selling price (£/Kg) | S220: Value£
C221: Dice 98% Visual Lean | D221: Dice B001 | E221: 1.362 | F221: =(E221/D216) -> 0.8155688623 | G221: 10 | H221: =(E221*G221) -> 13.62 | N221: Tri Tip Mini Joint | O221: Rump B020 | P221: 1.04 | Q221: 0.665 | R221: 11.5 | S221: =(P221*R221) -> 11.96
C222: Trim 85% Visual Lean | D222: Trim B008 | E222: 0.184 | F222: =(E222/D216) -> 0.1101796407 | G222: 7 | H222: =(E222*G222) -> 1.288 | N222: Dice 98% Visual Lean | O222: DiceB001 | P222: 0.274 | Q222: 0.1752 | R222: 10 | S222: 2.74
F223: =(E223/D216) -> 0 | H223: 0 | N223: Trim 85% Visual Lean | O223: Trim B008 | P223: 0.174 | Q223: 0.1113 | R223: 7 | S223: 1.218
F224: =(E224/D216) -> 0 | H224: 0 | Q224: =(P224/O216) -> 0 | S224: 0
F225: =(E225/D216) -> 0 | H225: 0 | Q225: =(P225/O216) -> 0 | S225: 0
F226: =(E226/D216) -> 0 | H226: 0 | Q226: =(P226/O216) -> 0 | S226: 0
F227: =(E227/D216) -> 0 | H227: 0 | Q227: =(P227/O216) -> 0 | S227: 0
F228: =(E228/D216) -> 0 | H228: 0 | Q228: =(P228/O216) -> 0 | S228: 0
F229: =(E229/D216) -> 0 | H229: 0 | Q229: =(P229/O216) -> 0 | S229: 0
F230: =(E230/D216) -> 0 | H230: 0 | Q230: =(P230/O216) -> 0 | S230: 0
F231: =(E231/D216) -> 0 | H231: 0 | Q231: =(P231/O216) -> 0 | S231: 0
F232: =(E232/D216) -> 0 | H232: 0 | Q232: =(P232/O216) -> 0 | S232: 0
D233: Total saleable meat | E233: =SUM(E221:E232) -> 1.546 | F233: =(E233/D216) -> 0.925748503 | O233: Total saleable meat | P233: =SUM(P221:P232) -> 1.488 | Q233: =(P233/O216) -> 0.9514066496
D234: Bone & Waste (Kg) | E234: 0.124 | F234: =(E234/D216) -> 0.07425149701 | O234: Bone & Waste (Kg) | P234: 0.054 | Q234: =(P234/O216) -> 0.03452685422
D235: Drip/Cutting loss(Kg) | E235: =(D216-E233-E234) -> -1.110223025e-16 | F235: =(E235/D216) -> -6.648042064e-17 | O235: Drip/Cutting loss(Kg) | P235: =(O216-P233-P234) -> 0.022 | Q235: =(P235/O216) -> 0.01406649616
E237: Total Sales Value | H237: =SUM(H221:H232) -> 14.908 | P237: Total Sales Value | S237: =SUM(S221:S232) -> 15.918
E238: Gross Margin | H238: =SUM(H221:H232,-D218) -> 6.558 | P238: Gross Margin | S238: =SUM(S221:S232,-O218) -> 8.098
E239: Gross Profit | H239: =(H238/H237) -> 0.4398980413 | P239: Gross Profit | S239: =(S238/S237) -> 0.5087322528
H241: Primal summary | M241: Value | N241: Gross Margin | O241: Profit %
H242: Table 1 | M242: =(H237) -> 14.908 | N242: =(H238) -> 6.558 | O242: =(H239) -> 0.4398980413
H243: Table 2 | M243: =(S237) -> 15.918 | N243: =(S238) -> 8.098 | O243: =(S239) -> 0.5087322528
H244: Increased Profit | M244: =(M243-M242) -> 1.01 | N244: =(N243-N242) -> 1.54 | O244: =SUM(O243-O242) -> 0.06883421148
H248: Striploin- EBLEX Code: Sirloin B002
C253: Table 1 | N253: Table 2
C254: Product name | D254: Sirloin Steak standard trim | G254: Sirloin B006 | N254: Product name | O254: Bone -in Porterhouse Steak | R254: Sirloin B017
C255: Primal weight | D255: 7.388 | E255: Percentage of Carcase | H255: =(D255/K5) -> 0.04466099236 | N255: Primal weight | O255: 11.695 | P255: Percentage of Carcase | S255: =(O255/K5) -> 0.07069711771
C256: Price Per Kg | D256: 11 | N256: Price Per Kg | O256: 8.3
C257: Wholesale cost: | D257: =(D256*D255) -> 81.268 | N257: Wholesale cost: | O257: =(O256*O255) -> 97.0685
C259: Product description | D259: Eblex code | E259: Weight (Kg) | F259: Red Meat Yield % | G259: Selling price (£/Kg) | H259: Value £ | J259: For alternative primal specifications click on the Eblex codes below | N259: Product description | O259: Eblex code | P259: Weight (Kg) | Q259: Red Meat Yield % | R259: Selling price (£/Kg) | S259: Value£
C260: Sirloin Steak standard | D260: Sirloin B006 | E260: 6.83 | F260: =(E260/D255) -> 0.9244721169 | G260: 17.62 | H260: =(E260*G260) -> 120.3446 | N260: Porterhouse Steak | O260: Sirloin B017 | P260: =(Q260*O255) -> 4.095589 | Q260: 0.3502 | R260: 19.34 | S260: =(P260*R260) -> 79.20869126
C261: Trim 85% Visual Lean | D261: Trim B008 | E261: 0.39 | F261: =(E261/D255) -> 0.05278830536 | G261: 7 | H261: =(E261*G261) -> 2.73 | N261: Bone in Sirloin Steak | O261: Sirloin B018 | P261: =(Q261*O255) -> 4.939968 | Q261: 0.4224 | R261: 19.34 | S261: 95.53898112
F262: =(E262/D255) -> 0 | H262: 0 | N262: Stir Fry of Beef | O262: Stir Fry B004 | P262: =(Q262*O255) -> 0.577733 | Q262: 0.0494 | R262: 15 | S262: 8.665995
F263: =(E263/D255) -> 0 | H263: 0 | N263: Trim 85% Visual Lean | O263: Trim B008 | P263: =(Q263*O255) -> 0.2163575 | Q263: 0.0185 | R263: 7 | S263: 1.5145025
F264: =(E264/D255) -> 0 | H264: 0 | Q264: =(P264/O255) -> 0 | S264: 0
F265: =(E265/D255) -> 0 | H265: 0 | Q265: =(P265/O255) -> 0 | S265: 0
F266: =(E266/D255) -> 0 | H266: 0 | Q266: =(P266/O255) -> 0 | S266: 0
F267: =(E267/D255) -> 0 | H267: 0 | Q267: =(P267/O255) -> 0 | S267: 0
F268: =(E268/D255) -> 0 | H268: 0 | Q268: =(P268/O255) -> 0 | S268: 0
F269: =(E269/D255) -> 0 | H269: 0 | Q269: =(P269/O255) -> 0 | S269: 0
F270: =(E270/D255) -> 0 | H270: 0 | Q270: =(P270/O255) -> 0 | S270: 0
F271: =(E271/D255) -> 0 | H271: 0 | Q271: =(P271/O255) -> 0 | S271: 0
D272: Total saleable meat | E272: =SUM(E260:E271) -> 7.22 | F272: =(E272/D255) -> 0.9772604223 | O272: Total saleable meat | P272: =SUM(P260:P271) -> 9.8296475 | Q272: =(P272/O255) -> 0.8405
... 580 more rows

Sheet Side Yield Comparison Template (hidden)
F3: Blank template : Beef carcase yield comparison between traditional and alternative cuts
H5: Carcase weight (Kg)
H6: Carcase Grade
H7: Carcase Cost/ Kg
H8: Total Carcase Cost | K8: =K5*K7 -> 0
H15: Topside- EBLEX Code: Topside B001
D16: TRADITIONAL | O16: ALTERNATIVE
C18: Table 1 | N18: Table 2
C19: Product name | N19: Product name
C20: Primal weight | E20: Percentage of Carcase | H20: =(D20/K5) ->  | N20: Primal weight | P20: Percentage of Carcase | S20: =(O20/K5) -> 
C21: Price Per Kg | N21: Price Per Kg
C22: Wholesale cost: | N22: Wholesale cost:
C25: Product description | D25: Eblex code | E25: Weight (Kg) | F25: Red Meat Yield % | G25: Selling price (£/Kg) | H25: Value £ | J25: FOR FULL CUTTING SPECIFICATIONS CLICK ON THE EBLEX CODE BELOW | N25: Product description | O25: Eblex code | P25: Weight (Kg) | Q25: Red Meat Yield % | R25: Selling price (£/Kg) | S25: Value£
F26: =(E26/D20) ->  | H26: =(E26*G26) -> 0 | Q26: =(P26/O20) ->  | S26: =(P26*R26) -> 0
F27: =(E27/D20) ->  | H27: =(E27*G27) -> 0 | Q27: =(P27/O20) ->  | S27: =(P27*R27) -> 0
F28: =(E28/D20) ->  | H28: 0 | J28: Topside Mini Joints with added fat | Q28: =(P28/O20) ->  | S28: 0
F29: =(E29/D20) ->  | H29: 0 | J29: Premium Topside Joints | Q29: =(P29/O20) ->  | S29: 0
F30: =(E30/D20) ->  | H30: 0 | Q30: =(P30/O20) ->  | S30: 0
F31: =(E31/D20) ->  | H31: 0 | Q31: =(P31/O20) ->  | S31: 0
F32: =(E32/D20) ->  | H32: 0 | Q32: =(P32/O20) ->  | S32: 0
F33: =(E33/D20) ->  | H33: 0 | Q33: =(P33/O20) ->  | S33: 0
F34: =(E34/D20) ->  | H34: 0 | Q34: =(P34/O20) ->  | S34: 0
F35: =(E35/D20) ->  | H35: 0 | Q35: =(P35/O20) ->  | S35: 0
F36: =(E36/D20) ->  | H36: 0 | Q36: =(P36/O20) ->  | S36: 0
F37: =(E37/D20) ->  | H37: 0 | Q37: =(P37/O20) ->  | S37: 0
D38: Total saleable meat | E38: =SUM(E26:E37) -> 0 | F38: =(E38/D20) ->  | O38: Total saleable meat | P38: =SUM(P26:P37) -> 0 | Q38: =(P38/O20) -> 
D39: Bone & Waste (Kg) | E39: 0 | F39: =(E39/D20) ->  | O39: Bone & Waste (Kg) | P39: 0 | Q39: =(P39/O20) -> 
D40: Drip/Cutting loss(Kg) | E40: =(D20-E38-E39) -> 0 | F40: =(E40/D20) ->  | O40: Drip/Cutting loss(Kg) | P40: =(O20-P38-P39) -> 0 | Q40: =(P40/O20) -> 
E42: Total Sales Value | H42: =SUM(H26:H37) -> 0 | P42: Total Sales Value | S42: =SUM(S26:S37) -> 0
E43: Gross Margin | H43: =SUM(H26:H37,-D22) -> 0 | P43: Gross Margin | S43: =SUM(S26:S37,-O22) -> 0
E44: Gross Profit | H44: =(H43/H42) ->  | P44: Gross Profit | S44: =(S43/S42) -> 
H46: Primal summary | M46: Value | N46: Gross Margin | O46: Profit %
H47: Table 1 | M47: =(H42) -> 0 | N47: =(H43) -> 0 | O47: =(H44) -> 
H48: Table 2 | M48: =(S42) -> 0 | N48: =(S43) -> 0 | O48: =(S44) -> 
H49: Increased Profit | M49: =(M48-M47) -> 0 | N49: =(N48-N47) -> 0 | O49: =SUM(O48-O47) -> 
H53: Silverside- EBLEX Code: Silverside B001
C58: Table 1 | N58: Table 2
C59: Product name | N59: Product name
C60: Primal weight | E60: Percentage of Carcase | H60: =(D60/K5) ->  | N60: Primal weight | P60: Percentage of Carcase | S60: =(O60/K5) -> 
C61: Price Per Kg | N61: Price Per Kg
C62: Wholesale cost: | N62: Wholesale cost:
C64: Product description | D64: Eblex code | E64: Weight (Kg) | F64: Red Meat Yield % | G64: Selling price (£/Kg) | H64: Value £ | J64: For alternative primal specifications click on the Eblex codes below | N64: Product description | O64: Eblex code | P64: Weight (Kg) | Q64: Red Meat Yield % | R64: Selling price (£/Kg) | S64: Value£
F65: =(E65/D60) ->  | H65: =(E65*G65) -> 0 | Q65: =(P65/O60) ->  | S65: =(P65*R65) -> 0
F66: =(E66/D60) ->  | H66: =(E66*G66) -> 0 | Q66: =(P66/O60) ->  | S66: 0
F67: =(E67/D60) ->  | H67: 0 | Q67: =(P67/O60) ->  | S67: 0
F68: =(E68/D60) ->  | H68: 0 | Q68: =(P68/O60) ->  | S68: 0
F69: =(E69/D60) ->  | H69: 0 | Q69: =(P69/O60) ->  | S69: 0
F70: =(E70/D60) ->  | H70: 0 | Q70: =(P70/O60) ->  | S70: 0
F71: =(E71/D60) ->  | H71: 0 | Q71: =(P71/O60) ->  | S71: 0
F72: =(E72/D60) ->  | H72: 0 | Q72: =(P72/O60) ->  | S72: 0
F73: =(E73/D60) ->  | H73: 0 | Q73: =(P73/O60) ->  | S73: 0
F74: =(E74/D60) ->  | H74: 0 | Q74: =(P74/O60) ->  | S74: 0
F75: =(E75/D60) ->  | H75: 0 | Q75: =(P75/O60) ->  | S75: 0
F76: =(E76/D60) ->  | H76: 0 | Q76: =(P76/O60) ->  | S76: 0
D77: Total saleable meat | E77: =SUM(E65:E76) -> 0 | F77: =(E77/D60) ->  | O77: Total saleable meat | P77: =SUM(P65:P76) -> 0 | Q77: =(P77/O60) -> 
D78: Bone & Waste (Kg) | E78: 0 | F78: =(E78/D60) ->  | O78: Bone & Waste (Kg) | P78: 0 | Q78: =(P78/O60) -> 
D79: Drip/Cutting loss(Kg) | E79: =(D60-E77-E78) -> 0 | F79: =(E79/D60) ->  | O79: Drip/Cutting loss(Kg) | P79: =(O60-P77-P78) -> 0 | Q79: =(P79/O60) -> 
E81: Total Sales Value | H81: =SUM(H65:H76) -> 0 | P81: Total Sales Value | S81: =SUM(S65:S76) -> 0
E82: Gross Margin | H82: =SUM(H65:H76,-D62) -> 0 | P82: Gross Margin | S82: =SUM(S65:S76,-O62) -> 0
E83: Gross Profit | H83: =(H82/H81) ->  | P83: Gross Profit | S83: =(S82/S81) -> 
H85: Primal summary | M85: Value | N85: Gross Margin | O85: Profit %
H86: Table 1 | M86: =(H81) -> 0 | N86: =(H82) -> 0 | O86: =(H83) -> 
H87: Table 2 | M87: =(S81) -> 0 | N87: =(S82) -> 0 | O87: =(S83) -> 
H88: Increased Profit | M88: =(M87-M86) -> 0 | N88: =(N87-N86) -> 0 | O88: =SUM(O87-O86) -> 
H92: Heel Muscle- EBLEX Code: Leg B001
C97: Table 1 | N97: Table 2
C98: Product name | N98: Product name
C99: Primal weight | E99: Percentage of Carcase | H99: =(D99/K5) ->  | N99: Primal weight | P99: Percentage of Carcase | S99: =(O99/K5) -> 
C100: Price Per Kg | N100: Price Per Kg
C101: Wholesale cost: | N101: Wholesale cost:
C103: Product description | D103: Eblex code | E103: Weight (Kg) | F103: Red Meat Yield % | G103: Selling price (£/Kg) | H103: Value £ | J103: For alternative primal specifications click on the Eblex codes below | N103: Product description | O103: Eblex code | P103: Weight (Kg) | Q103: Red Meat Yield % | R103: Selling price (£/Kg) | S103: Value£
F104: =(E104/D99) ->  | H104: =(E104*G104) -> 0 | Q104: =(P104/O99) ->  | S104: =(P104*R104) -> 0
F105: =(E105/D99) ->  | H105: =(E105*G105) -> 0 | Q105: =(P105/O99) ->  | S105: 0
F106: =(E106/D99) ->  | H106: 0 | Q106: =(P106/O99) ->  | S106: 0
F107: =(E107/D99) ->  | H107: 0 | Q107: =(P107/O99) ->  | S107: 0
F108: =(E108/D99) ->  | H108: 0 | Q108: =(P108/O99) ->  | S108: 0
F109: =(E109/D99) ->  | H109: 0 | Q109: =(P109/O99) ->  | S109: 0
F110: =(E110/D99) ->  | H110: 0 | Q110: =(P110/O99) ->  | S110: 0
F111: =(E111/D99) ->  | H111: 0 | Q111: =(P111/O99) ->  | S111: 0
F112: =(E112/D99) ->  | H112: 0 | Q112: =(P112/O99) ->  | S112: 0
F113: =(E113/D99) ->  | H113: 0 | Q113: =(P113/O99) ->  | S113: 0
F114: =(E114/D99) ->  | H114: 0 | Q114: =(P114/O99) ->  | S114: 0
F115: =(E115/D99) ->  | H115: 0 | Q115: =(P115/O99) ->  | S115: 0
D116: Total saleable meat | E116: =SUM(E104:E115) -> 0 | F116: =(E116/D99) ->  | O116: Total saleable meat | P116: =SUM(P104:P115) -> 0 | Q116: =(P116/O99) -> 
D117: Bone & Waste (Kg) | E117: 0 | F117: =(E117/D99) ->  | O117: Bone & Waste (Kg) | P117: 0 | Q117: =(P117/O99) -> 
D118: Drip/Cutting loss(Kg) | E118: =(D99-E116-E117) -> 0 | F118: =(E118/D99) ->  | O118: Drip/Cutting loss(Kg) | P118: =(O99-P116-P117) -> 0 | Q118: =(P118/O99) -> 
E120: Total Sales Value | H120: =SUM(H104:H115) -> 0 | P120: Total Sales Value | S120: =SUM(S104:S115) -> 0
E121: Gross Margin | H121: =SUM(H104:H115,-D101) -> 0 | P121: Gross Margin | S121: =SUM(S104:S115,-O101) -> 0
E122: Gross Profit | H122: =(H121/H120) ->  | P122: Gross Profit | S122: =(S121/S120) -> 
H124: Primal summary | M124: Value | N124: Gross Margin | O124: Profit %
H125: Table 1 | M125: =(H120) -> 0 | N125: =(H121) -> 0 | O125: =(H122) -> 
H126: Table 2 | M126: =(S120) -> 0 | N126: =(S121) -> 0 | O126: =(S122) -> 
H127: Increased Profit | M127: =(M126-M125) -> 0 | N127: =(N126-N125) -> 0 | O127: =SUM(O126-O125) -> 
H131: Thick Flank- EBLEX Code: Thick Flank B001
C136: Table 1 | N136: Table 2
C137: Product name | N137: Product name
C138: Primal weight | E138: Percentage of Carcase | H138: =(D138/K5) ->  | N138: Primal weight | P138: Percentage of Carcase | S138: =(O138/K5) -> 
C139: Price Per Kg | N139: Price Per Kg
C140: Wholesale cost: | N140: Wholesale cost:
C142: Product description | D142: Eblex code | E142: Weight (Kg) | F142: Red Meat Yield % | G142: Selling price (£/Kg) | H142: Value £ | J142: For alternative primal specifications click on the Eblex codes below | N142: Product description | O142: Eblex code | P142: Weight (Kg) | Q142: Red Meat Yield % | R142: Selling price (£/Kg) | S142: Value£
F143: =(E143/D138) ->  | H143: =(E143*G143) -> 0 | Q143: =(P143/O138) ->  | S143: =(P143*R143) -> 0
F144: =(E144/D138) ->  | H144: =(E144*G144) -> 0 | Q144: =(P144/O138) ->  | S144: 0
F145: =(E145/D138) ->  | H145: 0 | Q145: =(P145/O138) ->  | S145: 0
F146: =(E146/D138) ->  | H146: 0 | Q146: =(P146/O138) ->  | S146: 0
F147: =(E147/D138) ->  | H147: 0 | Q147: =(P147/O138) ->  | S147: 0
F148: =(E148/D138) ->  | H148: 0 | Q148: =(P148/O138) ->  | S148: 0
F149: =(E149/D138) ->  | H149: 0 | Q149: =(P149/O138) ->  | S149: 0
F150: =(E150/D138) ->  | H150: 0 | Q150: =(P150/O138) ->  | S150: 0
F151: =(E151/D138) ->  | H151: 0 | Q151: =(P151/O138) ->  | S151: 0
F152: =(E152/D138) ->  | H152: 0 | Q152: =(P152/O138) ->  | S152: 0
F153: =(E153/D138) ->  | H153: 0 | Q153: =(P153/O138) ->  | S153: 0
F154: =(E154/D138) ->  | H154: 0 | Q154: =(P154/O138) ->  | S154: 0
D155: Total saleable meat | E155: =SUM(E143:E154) -> 0 | F155: =(E155/D138) ->  | O155: Total saleable meat | P155: =SUM(P143:P154) -> 0 | Q155: =(P155/O138) -> 
D156: Bone & Waste (Kg) | E156: 0 | F156: =(E156/D138) ->  | O156: Bone & Waste (Kg) | P156: 0 | Q156: =(P156/O138) -> 
D157: Drip/Cutting loss(Kg) | E157: =(D138-E155-E156) -> 0 | F157: =(E157/D138) ->  | O157: Drip/Cutting loss(Kg) | P157: =(O138-P155-P156) -> 0 | Q157: =(P157/O138) -> 
E159: Total Sales Value | H159: =SUM(H143:H154) -> 0 | P159: Total Sales Value | S159: =SUM(S143:S154) -> 0
E160: Gross Margin | H160: =SUM(H143:H154,-D140) -> 0 | P160: Gross Margin | S160: =SUM(S143:S154,-O140) -> 0
E161: Gross Profit | H161: =(H160/H159) ->  | P161: Gross Profit | S161: =(S160/S159) -> 
H163: Primal summary | M163: Value | N163: Gross Margin | O163: Profit %
H164: Table 1 | M164: =(H159) -> 0 | N164: =(H160) -> 0 | O164: =(H161) -> 
H165: Table 2 | M165: =(S159) -> 0 | N165: =(S160) -> 0 | O165: =(S161) -> 
H166: Increased Profit | M166: =(M165-M164) -> 0 | N166: =(N165-N164) -> 0 | O166: =SUM(O165-O164) -> 
H170: D Rump (without tail)- EBLEX Code: Rump B004
C175: Table 1 | N175: Table 2
C176: Product name | N176: Product name
C177: Primal weight | E177: Percentage of Carcase | H177: =(D177/K5) ->  | N177: Primal weight | P177: Percentage of Carcase | S177: =(O177/K5) -> 
C178: Price Per Kg | N178: Price Per Kg
C179: Wholesale cost: | N179: Wholesale cost:
C181: Product description | D181: Eblex code | E181: Weight (Kg) | F181: Red Meat Yield % | G181: Selling price (£/Kg) | H181: Value £ | J181: For alternative primal specifications click on the Eblex codes below | N181: Product description | O181: Eblex code | P181: Weight (Kg) | Q181: Red Meat Yield % | R181: Selling price (£/Kg) | S181: Value£
F182: =(E182/D177) ->  | H182: =(E182*G182) -> 0 | Q182: =(P182/O177) ->  | S182: =(P182*R182) -> 0
F183: =(E183/D177) ->  | H183: =(E183*G183) -> 0 | Q183: =(P183/O177) ->  | S183: 0
F184: =(E184/D177) ->  | H184: 0 | Q184: =(P184/O177) ->  | S184: 0
F185: =(E185/D177) ->  | H185: 0 | Q185: =(P185/O177) ->  | S185: 0
F186: =(E186/D177) ->  | H186: 0 | Q186: =(P186/O177) ->  | S186: 0
F187: =(E187/D177) ->  | H187: 0 | Q187: =(P187/O177) ->  | S187: 0
F188: =(E188/D177) ->  | H188: 0 | Q188: =(P188/O177) ->  | S188: 0
F189: =(E189/D177) ->  | H189: 0 | Q189: =(P189/O177) ->  | S189: 0
F190: =(E190/D177) ->  | H190: 0 | Q190: =(P190/O177) ->  | S190: 0
F191: =(E191/D177) ->  | H191: 0 | Q191: =(P191/O177) ->  | S191: 0
F192: =(E192/D177) ->  | H192: 0 | Q192: =(P192/O177) ->  | S192: 0
F193: =(E193/D177) ->  | H193: 0 | Q193: =(P193/O177) ->  | S193: 0
D194: Total saleable meat | E194: =SUM(E182:E193) -> 0 | F194: =(E194/D177) ->  | O194: Total saleable meat | P194: =SUM(P182:P193) -> 0 | Q194: =(P194/O177) -> 
D195: Bone & Waste (Kg) | E195: 0 | F195: =(E195/D177) ->  | O195: Bone & Waste (Kg) | P195: 0 | Q195: =(P195/O177) -> 
D196: Drip/Cutting loss(Kg) | E196: =(D177-E194-E195) -> 0 | F196: =(E196/D177) ->  | O196: Drip/Cutting loss(Kg) | P196: =(O177-P194-P195) -> 0 | Q196: =(P196/O177) -> 
E198: Total Sales Value | H198: =SUM(H182:H193) -> 0 | P198: Total Sales Value | S198: =SUM(S182:S193) -> 0
E199: Gross Margin | H199: =SUM(H182:H193,-D179) -> 0 | P199: Gross Margin | S199: =SUM(S182:S193,-O179) -> 0
E200: Gross Profit | H200: =(H199/H198) ->  | P200: Gross Profit | S200: =(S199/S198) -> 
H202: Primal summary | M202: Value | N202: Gross Margin | O202: Profit %
H203: Table 1 | M203: =(H198) -> 0 | N203: =(H199) -> 0 | O203: =(H200) -> 
H204: Table 2 | M204: =(S198) -> 0 | N204: =(S199) -> 0 | O204: =(S200) -> 
H205: Increased Profit | M205: =(M204-M203) -> 0 | N205: =(N204-N203) -> 0 | O205: =SUM(O204-O203) -> 
H209: Rump Tail- EBLEX Code: Rump B012
C214: Table 1 | N214: Table 2
C215: Product name | N215: Product name
C216: Primal weight | E216: Percentage of Carcase | H216: =(D216/K5) ->  | N216: Primal weight | P216: Percentage of Carcase | S216: =(O216/K5) -> 
C217: Price Per Kg | N217: Price Per Kg
C218: Wholesale cost: | N218: Wholesale cost:
C220: Product description | D220: Eblex code | E220: Weight (Kg) | F220: Red Meat Yield % | G220: Selling price (£/Kg) | H220: Value £ | J220: For alternative primal specifications click on the Eblex codes below | N220: Product description | O220: Eblex code | P220: Weight (Kg) | Q220: Red Meat Yield % | R220: Selling price (£/Kg) | S220: Value£
F221: =(E221/D216) ->  | H221: =(E221*G221) -> 0 | Q221: =(P221/O216) ->  | S221: =(P221*R221) -> 0
F222: =(E222/D216) ->  | H222: =(E222*G222) -> 0 | Q222: =(P222/O216) ->  | S222: 0
F223: =(E223/D216) ->  | H223: 0 | Q223: =(P223/O216) ->  | S223: 0
F224: =(E224/D216) ->  | H224: 0 | Q224: =(P224/O216) ->  | S224: 0
F225: =(E225/D216) ->  | H225: 0 | Q225: =(P225/O216) ->  | S225: 0
F226: =(E226/D216) ->  | H226: 0 | Q226: =(P226/O216) ->  | S226: 0
F227: =(E227/D216) ->  | H227: 0 | Q227: =(P227/O216) ->  | S227: 0
F228: =(E228/D216) ->  | H228: 0 | Q228: =(P228/O216) ->  | S228: 0
F229: =(E229/D216) ->  | H229: 0 | Q229: =(P229/O216) ->  | S229: 0
F230: =(E230/D216) ->  | H230: 0 | Q230: =(P230/O216) ->  | S230: 0
F231: =(E231/D216) ->  | H231: 0 | Q231: =(P231/O216) ->  | S231: 0
F232: =(E232/D216) ->  | H232: 0 | Q232: =(P232/O216) ->  | S232: 0
D233: Total saleable meat | E233: =SUM(E221:E232) -> 0 | F233: =(E233/D216) ->  | O233: Total saleable meat | P233: =SUM(P221:P232) -> 0 | Q233: =(P233/O216) -> 
D234: Bone & Waste (Kg) | E234: 0 | F234: =(E234/D216) ->  | O234: Bone & Waste (Kg) | P234: 0 | Q234: =(P234/O216) -> 
D235: Drip/Cutting loss(Kg) | E235: =(D216-E233-E234) -> 0 | F235: =(E235/D216) ->  | O235: Drip/Cutting loss(Kg) | P235: =(O216-P233-P234) -> 0 | Q235: =(P235/O216) -> 
E237: Total Sales Value | H237: =SUM(H221:H232) -> 0 | P237: Total Sales Value | S237: =SUM(S221:S232) -> 0
E238: Gross Margin | H238: =SUM(H221:H232,-D218) -> 0 | P238: Gross Margin | S238: =SUM(S221:S232,-O218) -> 0
E239: Gross Profit | H239: =(H238/H237) ->  | P239: Gross Profit | S239: =(S238/S237) -> 
H241: Primal summary | M241: Value | N241: Gross Margin | O241: Profit %
H242: Table 1 | M242: =(H237) -> 0 | N242: =(H238) -> 0 | O242: =(H239) -> 
H243: Table 2 | M243: =(S237) -> 0 | N243: =(S238) -> 0 | O243: =(S239) -> 
H244: Increased Profit | M244: =(M243-M242) -> 0 | N244: =(N243-N242) -> 0 | O244: =SUM(O243-O242) -> 
H248: Striploin- EBLEX Code: Sirloin B002
C253: Table 1 | N253: Table 2
C254: Product name | N254: Product name
C255: Primal weight | E255: Percentage of Carcase | H255: =(D255/K5) ->  | N255: Primal weight | P255: Percentage of Carcase | S255: =(O255/K5) -> 
C256: Price Per Kg | N256: Price Per Kg
C257: Wholesale cost: | N257: Wholesale cost:
C259: Product description | D259: Eblex code | E259: Weight (Kg) | F259: Red Meat Yield % | G259: Selling price (£/Kg) | H259: Value £ | J259: For alternative primal specifications click on the Eblex codes below | N259: Product description | O259: Eblex code | P259: Weight (Kg) | Q259: Red Meat Yield % | R259: Selling price (£/Kg) | S259: Value£
F260: =(E260/D255) ->  | H260: =(E260*G260) -> 0 | Q260: =(P260/O255) ->  | S260: =(P260*R260) -> 0
F261: =(E261/D255) ->  | H261: =(E261*G261) -> 0 | Q261: =(P261/O255) ->  | S261: 0
F262: =(E262/D255) ->  | H262: 0 | Q262: =(P262/O255) ->  | S262: 0
F263: =(E263/D255) ->  | H263: 0 | Q263: =(P263/O255) ->  | S263: 0
F264: =(E264/D255) ->  | H264: 0 | Q264: =(P264/O255) ->  | S264: 0
F265: =(E265/D255) ->  | H265: 0 | Q265: =(P265/O255) ->  | S265: 0
F266: =(E266/D255) ->  | H266: 0 | Q266: =(P266/O255) ->  | S266: 0
F267: =(E267/D255) ->  | H267: 0 | Q267: =(P267/O255) ->  | S267: 0
F268: =(E268/D255) ->  | H268: 0 | Q268: =(P268/O255) ->  | S268: 0
F269: =(E269/D255) ->  | H269: 0 | Q269: =(P269/O255) ->  | S269: 0
F270: =(E270/D255) ->  | H270: 0 | Q270: =(P270/O255) ->  | S270: 0
F271: =(E271/D255) ->  | H271: 0 | Q271: =(P271/O255) ->  | S271: 0
D272: Total saleable meat | E272: =SUM(E260:E271) -> 0 | F272: =(E272/D255) ->  | O272: Total saleable meat | P272: =SUM(P260:P271) -> 0 | Q272: =(P272/O255) -> 
... 579 more rows

Sheet Primal Yield Template
F6: Blank template : Lamb carcase yield comparison between traditional and alternative cuts
H8: Carcase weight (Kg)
H9: Carcase Grade
H10: Carcase Cost/ Kg
H11: Total Carcase Cost | K11: =IF(ISERROR(IF(ISERROR(K8*K10),0,K8*K10)),0,IF(ISERROR(K8*K10),0,K8*K10)) -> 0
H18: Short Fore MPG Code: Forequarter L001
D19: TRADITIONAL | O19: ALTERNATIVE
C21: Table 1 | N21: Table 2
C22: Product name | N22: Product name
C23: Primal weight | E23: Percentage of Carcase | H23: =IF(ISERROR(IF(ISERROR((D23/K8)),0,(D23/K8))),0,IF(ISERROR((D23/K8)),0,(D23/K8))) -> 0 | N23: Primal weight | P23: Percentage of Carcase | S23: =IF(ISERROR(IF(ISERROR((O23/K8)),0,(O23/K8))),0,IF(ISERROR((O23/K8)),0,(O23/K8))) -> 0
C24: Price Per Kg | N24: Price Per Kg
C25: Wholesale cost: | D25: =IF(ISERROR(IF(ISERROR((D24*D23)),0,(D24*D23))),0,IF(ISERROR((D24*D23)),0,(D24*D23))) -> 0 | N25: Wholesale cost: | O25: =IF(ISERROR(IF(ISERROR((O24*O23)),0,(O24*O23))),0,IF(ISERROR((O24*O23)),0,(O24*O23))) -> 0
C28: Product description | D28: MPG Code | E28: Weight (Kg) | F28: Red Meat Yield % | G28: Selling price (£/Kg) | H28: Value £ | J28: For alternative primal specifications click on the MPG codes below | N28: Product description | O28: MPG Code | P28: Weight (Kg) | Q28: Red Meat Yield % | R28: Selling price (£/Kg) | S28: Value£
F29: =IF(ISERROR(IF(ISERROR((E29/D23)),0,(E29/D23))),0,IF(ISERROR((E29/D23)),0,(E29/D23))) -> 0 | H29: =IF(ISERROR(IF(ISERROR((E29*G29)),0,(E29*G29))),0,IF(ISERROR((E29*G29)),0,(E29*G29))) -> 0 | Q29: =IF(ISERROR(IF(ISERROR((P29/O23)),0,(P29/O23))),0,IF(ISERROR((P29/O23)),0,(P29/O23))) -> 0 | S29: =IF(ISERROR(IF(ISERROR((P29*R29)),0,(P29*R29))),0,IF(ISERROR((P29*R29)),0,(P29*R29))) -> 0
F30: =IF(ISERROR(IF(ISERROR((E30/D23)),0,(E30/D23))),0,IF(ISERROR((E30/D23)),0,(E30/D23))) -> 0 | H30: 0 | Q30: =IF(ISERROR(IF(ISERROR((P30/O23)),0,(P30/O23))),0,IF(ISERROR((P30/O23)),0,(P30/O23))) -> 0 | S30: 0
F31: =IF(ISERROR(IF(ISERROR((E31/D23)),0,(E31/D23))),0,IF(ISERROR((E31/D23)),0,(E31/D23))) -> 0 | H31: 0 | J31: www.ahdb.org.uk | Q31: =IF(ISERROR(IF(ISERROR((P31/O23)),0,(P31/O23))),0,IF(ISERROR((P31/O23)),0,(P31/O23))) -> 0 | S31: 0
F32: =IF(ISERROR(IF(ISERROR((E32/D23)),0,(E32/D23))),0,IF(ISERROR((E32/D23)),0,(E32/D23))) -> 0 | H32: 0 | Q32: =IF(ISERROR(IF(ISERROR((P32/O23)),0,(P32/O23))),0,IF(ISERROR((P32/O23)),0,(P32/O23))) -> 0 | S32: 0
F33: =IF(ISERROR(IF(ISERROR((E33/D23)),0,(E33/D23))),0,IF(ISERROR((E33/D23)),0,(E33/D23))) -> 0 | H33: 0 | Q33: =IF(ISERROR(IF(ISERROR((P33/O23)),0,(P33/O23))),0,IF(ISERROR((P33/O23)),0,(P33/O23))) -> 0 | S33: 0
F34: =IF(ISERROR(IF(ISERROR((E34/D23)),0,(E34/D23))),0,IF(ISERROR((E34/D23)),0,(E34/D23))) -> 0 | H34: 0 | Q34: =IF(ISERROR(IF(ISERROR((P34/O23)),0,(P34/O23))),0,IF(ISERROR((P34/O23)),0,(P34/O23))) -> 0 | S34: 0
F35: =IF(ISERROR(IF(ISERROR((E35/D23)),0,(E35/D23))),0,IF(ISERROR((E35/D23)),0,(E35/D23))) -> 0 | H35: 0 | Q35: =IF(ISERROR(IF(ISERROR((P35/O23)),0,(P35/O23))),0,IF(ISERROR((P35/O23)),0,(P35/O23))) -> 0 | S35: 0
F36: =IF(ISERROR(IF(ISERROR((E36/D23)),0,(E36/D23))),0,IF(ISERROR((E36/D23)),0,(E36/D23))) -> 0 | H36: 0 | Q36: =IF(ISERROR(IF(ISERROR((P36/O23)),0,(P36/O23))),0,IF(ISERROR((P36/O23)),0,(P36/O23))) -> 0 | S36: 0
F37: =IF(ISERROR(IF(ISERROR((E37/D23)),0,(E37/D23))),0,IF(ISERROR((E37/D23)),0,(E37/D23))) -> 0 | H37: 0 | Q37: =IF(ISERROR(IF(ISERROR((P37/O23)),0,(P37/O23))),0,IF(ISERROR((P37/O23)),0,(P37/O23))) -> 0 | S37: 0
F38: =IF(ISERROR(IF(ISERROR((E38/D23)),0,(E38/D23))),0,IF(ISERROR((E38/D23)),0,(E38/D23))) -> 0 | H38: 0 | Q38: =IF(ISERROR(IF(ISERROR((P38/O23)),0,(P38/O23))),0,IF(ISERROR((P38/O23)),0,(P38/O23))) -> 0 | S38: 0
F39: =IF(ISERROR(IF(ISERROR((E39/D23)),0,(E39/D23))),0,IF(ISERROR((E39/D23)),0,(E39/D23))) -> 0 | H39: 0 | Q39: =IF(ISERROR(IF(ISERROR((P39/O23)),0,(P39/O23))),0,IF(ISERROR((P39/O23)),0,(P39/O23))) -> 0 | S39: 0
F40: =IF(ISERROR(IF(ISERROR((E40/D23)),0,(E40/D23))),0,IF(ISERROR((E40/D23)),0,(E40/D23))) -> 0 | H40: 0 | Q40: =IF(ISERROR(IF(ISERROR((P40/O23)),0,(P40/O23))),0,IF(ISERROR((P40/O23)),0,(P40/O23))) -> 0 | S40: 0
D41: Total saleable meat | E41: =IF(ISERROR(IF(ISERROR(SUM(E29:E40)),0,SUM(E29:E40))),0,IF(ISERROR(SUM(E29:E40)),0,SUM(E29:E40))) -> 0 | F41: =IF(ISERROR(IF(ISERROR((E41/D23)),0,(E41/D23))),0,IF(ISERROR((E41/D23)),0,(E41/D23))) -> 0 | O41: Total saleable meat | P41: =IF(ISERROR(IF(ISERROR(SUM(P29:P40)),0,SUM(P29:P40))),0,IF(ISERROR(SUM(P29:P40)),0,SUM(P29:P40))) -> 0 | Q41: =IF(ISERROR(IF(ISERROR((P41/O23)),0,(P41/O23))),0,IF(ISERROR((P41/O23)),0,(P41/O23))) -> 0
D42: Bone & Waste (Kg) | E42: 0 | F42: =IF(ISERROR(IF(ISERROR((E42/D23)),0,(E42/D23))),0,IF(ISERROR((E42/D23)),0,(E42/D23))) -> 0 | O42: Bone & Waste (Kg) | P42: 0 | Q42: =IF(ISERROR(IF(ISERROR((P42/O23)),0,(P42/O23))),0,IF(ISERROR((P42/O23)),0,(P42/O23))) -> 0
D43: Drip/Cutting loss(Kg) | E43: =IF(ISERROR(IF(ISERROR((D23-E41-E42)),0,(D23-E41-E42))),0,IF(ISERROR((D23-E41-E42)),0,(D23-E41-E42))) -> 0 | F43: =IF(ISERROR(IF(ISERROR((E43/D23)),0,(E43/D23))),0,IF(ISERROR((E43/D23)),0,(E43/D23))) -> 0 | O43: Drip/Cutting loss(Kg) | P43: =IF(ISERROR(IF(ISERROR((O23-P41-P42)),0,(O23-P41-P42))),0,IF(ISERROR((O23-P41-P42)),0,(O23-P41-P42))) -> 0 | Q43: =IF(ISERROR(IF(ISERROR((P43/O23)),0,(P43/O23))),0,IF(ISERROR((P43/O23)),0,(P43/O23))) -> 0
E45: Total Sales Value | H45: =IF(ISERROR(IF(ISERROR(SUM(H29:H40)),0,SUM(H29:H40))),0,IF(ISERROR(SUM(H29:H40)),0,SUM(H29:H40))) -> 0 | P45: Total Sales Value | S45: =IF(ISERROR(IF(ISERROR(SUM(S29:S40)),0,SUM(S29:S40))),0,IF(ISERROR(SUM(S29:S40)),0,SUM(S29:S40))) -> 0
E46: Gross Margin | H46: =IF(ISERROR(IF(ISERROR(SUM(H29:H40,-D25)),0,SUM(H29:H40,-D25))),0,IF(ISERROR(SUM(H29:H40,-D25)),0,SUM(H29:H40,-D25))) -> 0 | P46: Gross Margin | S46: =IF(ISERROR(IF(ISERROR(SUM(S29:S40,-O25)),0,SUM(S29:S40,-O25))),0,IF(ISERROR(SUM(S29:S40,-O25)),0,SUM(S29:S40,-O25))) -> 0
E47: Gross Profit | H47: =IF(ISERROR(IF(ISERROR((H46/H45)),0,(H46/H45))),0,IF(ISERROR((H46/H45)),0,(H46/H45))) -> 0 | P47: Gross Profit | S47: =IF(ISERROR(IF(ISERROR((S46/S45)),0,(S46/S45))),0,IF(ISERROR((S46/S45)),0,(S46/S45))) -> 0
H49: Primal summary | M49: Value | N49: Gross Margin | O49: Profit %
H50: Table 1 | M50: =IF(ISERROR(IF(ISERROR((H45)),0,(H45))),0,IF(ISERROR((H45)),0,(H45))) -> 0 | N50: =IF(ISERROR(IF(ISERROR((H46)),0,(H46))),0,IF(ISERROR((H46)),0,(H46))) -> 0 | O50: =IF(ISERROR(IF(ISERROR((H47)),0,(H47))),0,IF(ISERROR((H47)),0,(H47))) -> 0
H51: Table 2 | M51: =IF(ISERROR(IF(ISERROR((S45)),0,(S45))),0,IF(ISERROR((S45)),0,(S45))) -> 0 | N51: =IF(ISERROR(IF(ISERROR((S46)),0,(S46))),0,IF(ISERROR((S46)),0,(S46))) -> 0 | O51: =IF(ISERROR(IF(ISERROR((S47)),0,(S47))),0,IF(ISERROR((S47)),0,(S47))) -> 0
H52: Increased Profit | M52: =IF(ISERROR(IF(ISERROR((M51-M50)),0,(M51-M50))),0,IF(ISERROR((M51-M50)),0,(M51-M50))) -> 0 | N52: =IF(ISERROR(IF(ISERROR((N51-N50)),0,(N51-N50))),0,IF(ISERROR((N51-N50)),0,(N51-N50))) -> 0 | O52: =IF(ISERROR(IF(ISERROR(SUM(O51-O50)),0,SUM(O51-O50))),0,IF(ISERROR(SUM(O51-O50)),0,SUM(O51-O50))) -> 0
H56: Middle MPG code: Loin L001
C61: Table 1 | N61: Table 2
C62: Product name | N62: Product name
C63: Primal weight | E63: Percentage of Carcase | H63: =IF(ISERROR(IF(ISERROR((D63/K8)),0,(D63/K8))),0,IF(ISERROR((D63/K8)),0,(D63/K8))) -> 0 | N63: Primal weight | P63: Percentage of Carcase | S63: =IF(ISERROR(IF(ISERROR((O63/K8)),0,(O63/K8))),0,IF(ISERROR((O63/K8)),0,(O63/K8))) -> 0
C64: Price Per Kg | N64: Price Per Kg
C65: Wholesale cost: | D65: =IF(ISERROR(IF(ISERROR((D64*D63)),0,(D64*D63))),0,IF(ISERROR((D64*D63)),0,(D64*D63))) -> 0 | N65: Wholesale cost: | O65: =IF(ISERROR(IF(ISERROR((O64*O63)),0,(O64*O63))),0,IF(ISERROR((O64*O63)),0,(O64*O63))) -> 0
C67: Product description | D67: MPG Code | E67: Weight (Kg) | F67: Red Meat Yield % | G67: Selling price (£/Kg) | H67: Value £ | J67: For alternative primal specifications click on the MPG codes below | N67: Product description | O67: MPG Code | P67: Weight (Kg) | Q67: Red Meat Yield % | R67: Selling price (£/Kg) | S67: Value£
F68: =IF(ISERROR(IF(ISERROR((E68/D63)),0,(E68/D63))),0,IF(ISERROR((E68/D63)),0,(E68/D63))) -> 0 | H68: =IF(ISERROR(IF(ISERROR((E68*G68)),0,(E68*G68))),0,IF(ISERROR((E68*G68)),0,(E68*G68))) -> 0 | Q68: =IF(ISERROR(IF(ISERROR((P68/O63)),0,(P68/O63))),0,IF(ISERROR((P68/O63)),0,(P68/O63))) -> 0 | S68: =IF(ISERROR(IF(ISERROR((P68*R68)),0,(P68*R68))),0,IF(ISERROR((P68*R68)),0,(P68*R68))) -> 0
F69: =IF(ISERROR(IF(ISERROR((E69/D63)),0,(E69/D63))),0,IF(ISERROR((E69/D63)),0,(E69/D63))) -> 0 | H69: 0 | Q69: =IF(ISERROR(IF(ISERROR((P69/O63)),0,(P69/O63))),0,IF(ISERROR((P69/O63)),0,(P69/O63))) -> 0 | S69: 0
F70: =IF(ISERROR(IF(ISERROR((E70/D63)),0,(E70/D63))),0,IF(ISERROR((E70/D63)),0,(E70/D63))) -> 0 | H70: 0 | J70: www.ahdb.org.uk | Q70: =IF(ISERROR(IF(ISERROR((P70/O63)),0,(P70/O63))),0,IF(ISERROR((P70/O63)),0,(P70/O63))) -> 0 | S70: 0
F71: =IF(ISERROR(IF(ISERROR((E71/D63)),0,(E71/D63))),0,IF(ISERROR((E71/D63)),0,(E71/D63))) -> 0 | H71: 0 | Q71: =IF(ISERROR(IF(ISERROR((P71/O63)),0,(P71/O63))),0,IF(ISERROR((P71/O63)),0,(P71/O63))) -> 0 | S71: 0
F72: =IF(ISERROR(IF(ISERROR((E72/D63)),0,(E72/D63))),0,IF(ISERROR((E72/D63)),0,(E72/D63))) -> 0 | H72: 0 | Q72: =IF(ISERROR(IF(ISERROR((P72/O63)),0,(P72/O63))),0,IF(ISERROR((P72/O63)),0,(P72/O63))) -> 0 | S72: 0
F73: =IF(ISERROR(IF(ISERROR((E73/D63)),0,(E73/D63))),0,IF(ISERROR((E73/D63)),0,(E73/D63))) -> 0 | H73: 0 | Q73: =IF(ISERROR(IF(ISERROR((P73/O63)),0,(P73/O63))),0,IF(ISERROR((P73/O63)),0,(P73/O63))) -> 0 | S73: 0
F74: =IF(ISERROR(IF(ISERROR((E74/D63)),0,(E74/D63))),0,IF(ISERROR((E74/D63)),0,(E74/D63))) -> 0 | H74: 0 | Q74: =IF(ISERROR(IF(ISERROR((P74/O63)),0,(P74/O63))),0,IF(ISERROR((P74/O63)),0,(P74/O63))) -> 0 | S74: 0
F75: =IF(ISERROR(IF(ISERROR((E75/D63)),0,(E75/D63))),0,IF(ISERROR((E75/D63)),0,(E75/D63))) -> 0 | H75: 0 | Q75: =IF(ISERROR(IF(ISERROR((P75/O63)),0,(P75/O63))),0,IF(ISERROR((P75/O63)),0,(P75/O63))) -> 0 | S75: 0
F76: =IF(ISERROR(IF(ISERROR((E76/D63)),0,(E76/D63))),0,IF(ISERROR((E76/D63)),0,(E76/D63))) -> 0 | H76: 0 | Q76: =IF(ISERROR(IF(ISERROR((P76/O63)),0,(P76/O63))),0,IF(ISERROR((P76/O63)),0,(P76/O63))) -> 0 | S76: 0
F77: =IF(ISERROR(IF(ISERROR((E77/D63)),0,(E77/D63))),0,IF(ISERROR((E77/D63)),0,(E77/D63))) -> 0 | H77: 0 | Q77: =IF(ISERROR(IF(ISERROR((P77/O63)),0,(P77/O63))),0,IF(ISERROR((P77/O63)),0,(P77/O63))) -> 0 | S77: 0
F78: =IF(ISERROR(IF(ISERROR((E78/D63)),0,(E78/D63))),0,IF(ISERROR((E78/D63)),0,(E78/D63))) -> 0 | H78: 0 | Q78: =IF(ISERROR(IF(ISERROR((P78/O63)),0,(P78/O63))),0,IF(ISERROR((P78/O63)),0,(P78/O63))) -> 0 | S78: 0
F79: =IF(ISERROR(IF(ISERROR((E79/D63)),0,(E79/D63))),0,IF(ISERROR((E79/D63)),0,(E79/D63))) -> 0 | H79: 0 | Q79: =IF(ISERROR(IF(ISERROR((P79/O63)),0,(P79/O63))),0,IF(ISERROR((P79/O63)),0,(P79/O63))) -> 0 | S79: 0
D80: Total saleable meat | E80: =IF(ISERROR(IF(ISERROR(SUM(E68:E79)),0,SUM(E68:E79))),0,IF(ISERROR(SUM(E68:E79)),0,SUM(E68:E79))) -> 0 | F80: =IF(ISERROR(IF(ISERROR((E80/D63)),0,(E80/D63))),0,IF(ISERROR((E80/D63)),0,(E80/D63))) -> 0 | O80: Total saleable meat | P80: =IF(ISERROR(IF(ISERROR(SUM(P68:P79)),0,SUM(P68:P79))),0,IF(ISERROR(SUM(P68:P79)),0,SUM(P68:P79))) -> 0 | Q80: =IF(ISERROR(IF(ISERROR((P80/O63)),0,(P80/O63))),0,IF(ISERROR((P80/O63)),0,(P80/O63))) -> 0
D81: Bone & Waste (Kg) | E81: 0 | F81: =IF(ISERROR(IF(ISERROR((E81/D63)),0,(E81/D63))),0,IF(ISERROR((E81/D63)),0,(E81/D63))) -> 0 | O81: Bone & Waste (Kg) | P81: 0 | Q81: =IF(ISERROR(IF(ISERROR((P81/O63)),0,(P81/O63))),0,IF(ISERROR((P81/O63)),0,(P81/O63))) -> 0
D82: Drip/Cutting loss(Kg) | E82: =IF(ISERROR(IF(ISERROR((D63-E80-E81)),0,(D63-E80-E81))),0,IF(ISERROR((D63-E80-E81)),0,(D63-E80-E81))) -> 0 | F82: =IF(ISERROR(IF(ISERROR((E82/D63)),0,(E82/D63))),0,IF(ISERROR((E82/D63)),0,(E82/D63))) -> 0 | O82: Drip/Cutting loss(Kg) | P82: =IF(ISERROR(IF(ISERROR((O63-P80-P81)),0,(O63-P80-P81))),0,IF(ISERROR((O63-P80-P81)),0,(O63-P80-P81))) -> 0 | Q82: =IF(ISERROR(IF(ISERROR((P82/O63)),0,(P82/O63))),0,IF(ISERROR((P82/O63)),0,(P82/O63))) -> 0
E84: Total Sales Value | H84: =IF(ISERROR(IF(ISERROR(SUM(H68:H79)),0,SUM(H68:H79))),0,IF(ISERROR(SUM(H68:H79)),0,SUM(H68:H79))) -> 0 | P84: Total Sales Value | S84: =IF(ISERROR(IF(ISERROR(SUM(S68:S79)),0,SUM(S68:S79))),0,IF(ISERROR(SUM(S68:S79)),0,SUM(S68:S79))) -> 0
E85: Gross Margin | H85: =IF(ISERROR(IF(ISERROR(SUM(H68:H79,-D65)),0,SUM(H68:H79,-D65))),0,IF(ISERROR(SUM(H68:H79,-D65)),0,SUM(H68:H79,-D65))) -> 0 | P85: Gross Margin | S85: =IF(ISERROR(IF(ISERROR(SUM(S68:S79,-O65)),0,SUM(S68:S79,-O65))),0,IF(ISERROR(SUM(S68:S79,-O65)),0,SUM(S68:S79,-O65))) -> 0
E86: Gross Profit | H86: =IF(ISERROR(IF(ISERROR((H85/H84)),0,(H85/H84))),0,IF(ISERROR((H85/H84)),0,(H85/H84))) -> 0 | P86: Gross Profit | S86: =IF(ISERROR(IF(ISERROR((S85/S84)),0,(S85/S84))),0,IF(ISERROR((S85/S84)),0,(S85/S84))) -> 0
H88: Primal summary | M88: Value | N88: Gross Margin | O88: Profit %
H89: Table 1 | M89: =IF(ISERROR(IF(ISERROR((H84)),0,(H84))),0,IF(ISERROR((H84)),0,(H84))) -> 0 | N89: =IF(ISERROR(IF(ISERROR((H85)),0,(H85))),0,IF(ISERROR((H85)),0,(H85))) -> 0 | O89: =IF(ISERROR(IF(ISERROR((H86)),0,(H86))),0,IF(ISERROR((H86)),0,(H86))) -> 0
H90: Table 2 | M90: =IF(ISERROR(IF(ISERROR((S84)),0,(S84))),0,IF(ISERROR((S84)),0,(S84))) -> 0 | N90: =IF(ISERROR(IF(ISERROR((S85)),0,(S85))),0,IF(ISERROR((S85)),0,(S85))) -> 0 | O90: =IF(ISERROR(IF(ISERROR((S86)),0,(S86))),0,IF(ISERROR((S86)),0,(S86))) -> 0
H91: Increased Profit | M91: =IF(ISERROR(IF(ISERROR((M90-M89)),0,(M90-M89))),0,IF(ISERROR((M90-M89)),0,(M90-M89))) -> 0 | N91: =IF(ISERROR(IF(ISERROR((N90-N89)),0,(N90-N89))),0,IF(ISERROR((N90-N89)),0,(N90-N89))) -> 0 | O91: =IF(ISERROR(IF(ISERROR(SUM(O90-O89)),0,SUM(O90-O89))),0,IF(ISERROR(SUM(O90-O89)),0,SUM(O90-O89))) -> 0
H95: Legs with Chump MPG code: Leg L029
C100: Table 1 | N100: Table 2
C101: Product name | N101: Product name
C102: Primal weight | E102: Percentage of Carcase | H102: =IF(ISERROR(IF(ISERROR((D102/K8)),0,(D102/K8))),0,IF(ISERROR((D102/K8)),0,(D102/K8))) -> 0 | N102: Primal weight | P102: Percentage of Carcase | S102: =IF(ISERROR(IF(ISERROR((O102/K8)),0,(O102/K8))),0,IF(ISERROR((O102/K8)),0,(O102/K8))) -> 0
C103: Price Per Kg | N103: Price Per Kg
C104: Wholesale cost: | D104: =IF(ISERROR(IF(ISERROR((D103*D102)),0,(D103*D102))),0,IF(ISERROR((D103*D102)),0,(D103*D102))) -> 0 | N104: Wholesale cost: | O104: =IF(ISERROR(IF(ISERROR((O103*O102)),0,(O103*O102))),0,IF(ISERROR((O103*O102)),0,(O103*O102))) -> 0
C106: Product description | D106: MPG Code | E106: Weight (Kg) | F106: Red Meat Yield % | G106: Selling price (£/Kg) | H106: Value £ | J106: For alternative primal specifications click on the MPG codes below | N106: Product description | O106: MPG Code | P106: Weight (Kg) | Q106: Red Meat Yield % | R106: Selling price (£/Kg) | S106: Value£
F107: =IF(ISERROR(IF(ISERROR((E107/D102)),0,(E107/D102))),0,IF(ISERROR((E107/D102)),0,(E107/D102))) -> 0 | H107: =IF(ISERROR(IF(ISERROR((E107*G107)),0,(E107*G107))),0,IF(ISERROR((E107*G107)),0,(E107*G107))) -> 0 | Q107: =IF(ISERROR(IF(ISERROR((P107/O102)),0,(P107/O102))),0,IF(ISERROR((P107/O102)),0,(P107/O102))) -> 0 | S107: =IF(ISERROR(IF(ISERROR((P107*R107)),0,(P107*R107))),0,IF(ISERROR((P107*R107)),0,(P107*R107))) -> 0
F108: =IF(ISERROR(IF(ISERROR((E108/D102)),0,(E108/D102))),0,IF(ISERROR((E108/D102)),0,(E108/D102))) -> 0 | H108: 0 | Q108: =IF(ISERROR(IF(ISERROR((P108/O102)),0,(P108/O102))),0,IF(ISERROR((P108/O102)),0,(P108/O102))) -> 0 | S108: 0
F109: =IF(ISERROR(IF(ISERROR((E109/D102)),0,(E109/D102))),0,IF(ISERROR((E109/D102)),0,(E109/D102))) -> 0 | H109: 0 | J109: www.ahdb.org.uk | Q109: =IF(ISERROR(IF(ISERROR((P109/O102)),0,(P109/O102))),0,IF(ISERROR((P109/O102)),0,(P109/O102))) -> 0 | S109: 0
F110: =IF(ISERROR(IF(ISERROR((E110/D102)),0,(E110/D102))),0,IF(ISERROR((E110/D102)),0,(E110/D102))) -> 0 | H110: 0 | Q110: =IF(ISERROR(IF(ISERROR((P110/O102)),0,(P110/O102))),0,IF(ISERROR((P110/O102)),0,(P110/O102))) -> 0 | S110: 0
F111: =IF(ISERROR(IF(ISERROR((E111/D102)),0,(E111/D102))),0,IF(ISERROR((E111/D102)),0,(E111/D102))) -> 0 | H111: 0 | Q111: =IF(ISERROR(IF(ISERROR((P111/O102)),0,(P111/O102))),0,IF(ISERROR((P111/O102)),0,(P111/O102))) -> 0 | S111: 0
F112: =IF(ISERROR(IF(ISERROR((E112/D102)),0,(E112/D102))),0,IF(ISERROR((E112/D102)),0,(E112/D102))) -> 0 | H112: 0 | Q112: =IF(ISERROR(IF(ISERROR((P112/O102)),0,(P112/O102))),0,IF(ISERROR((P112/O102)),0,(P112/O102))) -> 0 | S112: 0
F113: =IF(ISERROR(IF(ISERROR((E113/D102)),0,(E113/D102))),0,IF(ISERROR((E113/D102)),0,(E113/D102))) -> 0 | H113: 0 | Q113: =IF(ISERROR(IF(ISERROR((P113/O102)),0,(P113/O102))),0,IF(ISERROR((P113/O102)),0,(P113/O102))) -> 0 | S113: 0
F114: =IF(ISERROR(IF(ISERROR((E114/D102)),0,(E114/D102))),0,IF(ISERROR((E114/D102)),0,(E114/D102))) -> 0 | H114: 0 | Q114: =IF(ISERROR(IF(ISERROR((P114/O102)),0,(P114/O102))),0,IF(ISERROR((P114/O102)),0,(P114/O102))) -> 0 | S114: 0
F115: =IF(ISERROR(IF(ISERROR((E115/D102)),0,(E115/D102))),0,IF(ISERROR((E115/D102)),0,(E115/D102))) -> 0 | H115: 0 | Q115: =IF(ISERROR(IF(ISERROR((P115/O102)),0,(P115/O102))),0,IF(ISERROR((P115/O102)),0,(P115/O102))) -> 0 | S115: 0
F116: =IF(ISERROR(IF(ISERROR((E116/D102)),0,(E116/D102))),0,IF(ISERROR((E116/D102)),0,(E116/D102))) -> 0 | H116: 0 | Q116: =IF(ISERROR(IF(ISERROR((P116/O102)),0,(P116/O102))),0,IF(ISERROR((P116/O102)),0,(P116/O102))) -> 0 | S116: 0
F117: =IF(ISERROR(IF(ISERROR((E117/D102)),0,(E117/D102))),0,IF(ISERROR((E117/D102)),0,(E117/D102))) -> 0 | H117: 0 | Q117: =IF(ISERROR(IF(ISERROR((P117/O102)),0,(P117/O102))),0,IF(ISERROR((P117/O102)),0,(P117/O102))) -> 0 | S117: 0
F118: =IF(ISERROR(IF(ISERROR((E118/D102)),0,(E118/D102))),0,IF(ISERROR((E118/D102)),0,(E118/D102))) -> 0 | H118: 0 | Q118: =IF(ISERROR(IF(ISERROR((P118/O102)),0,(P118/O102))),0,IF(ISERROR((P118/O102)),0,(P118/O102))) -> 0 | S118: 0
D119: Total saleable meat | E119: =IF(ISERROR(IF(ISERROR(SUM(E107:E118)),0,SUM(E107:E118))),0,IF(ISERROR(SUM(E107:E118)),0,SUM(E107:E118))) -> 0 | F119: =IF(ISERROR(IF(ISERROR((E119/D102)),0,(E119/D102))),0,IF(ISERROR((E119/D102)),0,(E119/D102))) -> 0 | O119: Total saleable meat | P119: =IF(ISERROR(IF(ISERROR(SUM(P107:P118)),0,SUM(P107:P118))),0,IF(ISERROR(SUM(P107:P118)),0,SUM(P107:P118))) -> 0 | Q119: =IF(ISERROR(IF(ISERROR((P119/O102)),0,(P119/O102))),0,IF(ISERROR((P119/O102)),0,(P119/O102))) -> 0
D120: Bone & Waste (Kg) | E120: 0 | F120: =IF(ISERROR(IF(ISERROR((E120/D102)),0,(E120/D102))),0,IF(ISERROR((E120/D102)),0,(E120/D102))) -> 0 | O120: Bone & Waste (Kg) | P120: 0 | Q120: =IF(ISERROR(IF(ISERROR((O102/P120)),0,(O102/P120))),0,IF(ISERROR((O102/P120)),0,(O102/P120))) -> 0
D121: Drip/Cutting loss(Kg) | E121: =IF(ISERROR(IF(ISERROR((D102-E119-E120)),0,(D102-E119-E120))),0,IF(ISERROR((D102-E119-E120)),0,(D102-E119-E120))) -> 0 | F121: =IF(ISERROR(IF(ISERROR((E121/D102)),0,(E121/D102))),0,IF(ISERROR((E121/D102)),0,(E121/D102))) -> 0 | O121: Drip/Cutting loss(Kg) | P121: =IF(ISERROR(IF(ISERROR((O102-P119-P120)),0,(O102-P119-P120))),0,IF(ISERROR((O102-P119-P120)),0,(O102-P119-P120))) -> 0 | Q121: =IF(ISERROR(IF(ISERROR((K123/O102)),0,(K123/O102))),0,IF(ISERROR((K123/O102)),0,(K123/O102))) -> 0
E123: Total Sales Value | H123: =IF(ISERROR(IF(ISERROR(SUM(H107:H118)),0,SUM(H107:H118))),0,IF(ISERROR(SUM(H107:H118)),0,SUM(H107:H118))) -> 0 | P123: Total Sales Value | S123: =IF(ISERROR(IF(ISERROR(SUM(S107:S118)),0,SUM(S107:S118))),0,IF(ISERROR(SUM(S107:S118)),0,SUM(S107:S118))) -> 0
E124: Gross Margin | H124: =IF(ISERROR(IF(ISERROR(SUM(H107:H118,-D104)),0,SUM(H107:H118,-D104))),0,IF(ISERROR(SUM(H107:H118,-D104)),0,SUM(H107:H118,-D104))) -> 0 | P124: Gross Margin | S124: =IF(ISERROR(IF(ISERROR(SUM(S107:S118,-O104)),0,SUM(S107:S118,-O104))),0,IF(ISERROR(SUM(S107:S118,-O104)),0,SUM(S107:S118,-O104))) -> 0
E125: Gross Profit | H125: =IF(ISERROR(IF(ISERROR((H124/H123)),0,(H124/H123))),0,IF(ISERROR((H124/H123)),0,(H124/H123))) -> 0 | P125: Gross Profit | S125: =IF(ISERROR(IF(ISERROR((S124/S123)),0,(S124/S123))),0,IF(ISERROR((S124/S123)),0,(S124/S123))) -> 0
H127: Primal summary | M127: Value | N127: Gross Margin | O127: Profit %
H128: Table 1 | M128: =IF(ISERROR(IF(ISERROR((H123)),0,(H123))),0,IF(ISERROR((H123)),0,(H123))) -> 0 | N128: =IF(ISERROR(IF(ISERROR((H124)),0,(H124))),0,IF(ISERROR((H124)),0,(H124))) -> 0 | O128: =IF(ISERROR(IF(ISERROR((H125)),0,(H125))),0,IF(ISERROR((H125)),0,(H125))) -> 0
H129: Table 2 | M129: =IF(ISERROR(IF(ISERROR((S123)),0,(S123))),0,IF(ISERROR((S123)),0,(S123))) -> 0 | N129: =IF(ISERROR(IF(ISERROR((S124)),0,(S124))),0,IF(ISERROR((S124)),0,(S124))) -> 0 | O129: =IF(ISERROR(IF(ISERROR((S125)),0,(S125))),0,IF(ISERROR((S125)),0,(S125))) -> 0
H130: Increased Profit | M130: =IF(ISERROR(IF(ISERROR((M129-M128)),0,(M129-M128))),0,IF(ISERROR((M129-M128)),0,(M129-M128))) -> 0 | N130: =IF(ISERROR(IF(ISERROR((N129-N128)),0,(N129-N128))),0,IF(ISERROR((N129-N128)),0,(N129-N128))) -> 0 | O130: =IF(ISERROR(IF(ISERROR(SUM(O129-O128)),0,SUM(O129-O128))),0,IF(ISERROR(SUM(O129-O128)),0,SUM(O129-O128))) -> 0
C1032: Traditional | N1032: Alternative
C1033: Total Red Meat (Kg) | E1033: =IF(ISERROR(IF(ISERROR((E119+E80+E41)),0,(E119+E80+E41))),0,IF(ISERROR((E119+E80+E41)),0,(E119+E80+E41))) -> 0 | N1033: Total Red Meat (Kg) | P1033: =IF(ISERROR(IF(ISERROR((P119+P80+P41)),0,(P119+P80+P41))),0,IF(ISERROR((P119+P80+P41)),0,(P119+P80+P41))) -> 0
C1034: Total Fat (Kg) | N1034: Total Fat (Kg)
C1035: Total Bone & Waste (kg) | E1035: =IF(ISERROR(IF(ISERROR((E120+E81+E42)),0,(E120+E81+E42))),0,IF(ISERROR((E120+E81+E42)),0,(E120+E81+E42))) -> 0 | N1035: Total Bone & Waste (kg) | P1035: =IF(ISERROR(IF(ISERROR((P120+P81+P42)),0,(P120+P81+P42))),0,IF(ISERROR((P120+P81+P42)),0,(P120+P81+P42))) -> 0
C1036: Total Drip Cutting loss (kg) | E1036: =IF(ISERROR(IF(ISERROR((K8-E1035-E1033)),0,(K8-E1035-E1033))),0,IF(ISERROR((K8-E1035-E1033)),0,(K8-E1035-E1033))) -> 0 | N1036: Total Drip Cutting loss (kg) | P1036: =IF(ISERROR(IF(ISERROR((K8-P1033-P1034-P1035)),0,(K8-P1033-P1034-P1035))),0,IF(ISERROR((K8-P1033-P1034-P1035)),0,(K8-P1033-P1034-P1035))) -> 0
C1037: Total Red Meat Yield % | E1037: =IF(ISERROR(IF(ISERROR((E1033/K8)),0,(E1033/K8))),0,IF(ISERROR((E1033/K8)),0,(E1033/K8))) -> 0 | N1037: Total Red Meat Yield % | P1037: =IF(ISERROR(IF(ISERROR((P1033/K8)),0,(P1033/K8))),0,IF(ISERROR((P1033/K8)),0,(P1033/K8))) -> 0
C1038: Total Bone & Waste (%) | E1038: =IF(ISERROR(IF(ISERROR((E1035/K8)),0,(E1035/K8))),0,IF(ISERROR((E1035/K8)),0,(E1035/K8))) -> 0 | N1038: Total Bone & Waste (%) | P1038: =IF(ISERROR(IF(ISERROR((P1035/K8)),0,(P1035/K8))),0,IF(ISERROR((P1035/K8)),0,(P1035/K8))) -> 0
C1039: Waste Fat (%) | E1039: =IF(ISERROR(IF(ISERROR((E1034/K8)),0,(E1034/K8))),0,IF(ISERROR((E1034/K8)),0,(E1034/K8))) -> 0 | N1039: Waste Fat (%) | P1039: =IF(ISERROR(IF(ISERROR((P1034/K8)),0,(P1034/K8))),0,IF(ISERROR((P1034/K8)),0,(P1034/K8))) -> 0
C1040: Drip/Cutting Loss (%) | E1040: =IF(ISERROR(IF(ISERROR((E1036/K8)),0,(E1036/K8))),0,IF(ISERROR((E1036/K8)),0,(E1036/K8))) -> 0 | N1040: Drip/Cutting Loss (%) | P1040: =IF(ISERROR(IF(ISERROR((P1036/K8)),0,(P1036/K8))),0,IF(ISERROR((P1036/K8)),0,(P1036/K8))) -> 0
C1041: Reconciled Yield | E1041: =IF(ISERROR(IF(ISERROR((E1037+E1038+E1040)),0,(E1037+E1038+E1040))),0,IF(ISERROR((E1037+E1038+E1040)),0,(E1037+E1038+E1040))) -> 0 | N1041: Reconciled Yield | P1041: =IF(ISERROR(IF(ISERROR((P1037+P1038+P1040)),0,(P1037+P1038+P1040))),0,IF(ISERROR((P1037+P1038+P1040)),0,(P1037+P1038+P1040))) -> 0
C1044: Total Carcase Cost | E1044: =IF(ISERROR(IF(ISERROR(K11),0,K11)),0,IF(ISERROR(K11),0,K11)) -> 0 | N1044: Total Carcase Cost | P1044: =IF(ISERROR(IF(ISERROR((K11)),0,(K11))),0,IF(ISERROR((K11)),0,(K11))) -> 0
C1045: Totals Sales Value | E1045: =IF(ISERROR(IF(ISERROR((H123+H84+H45)),0,(H123+H84+H45))),0,IF(ISERROR((H123+H84+H45)),0,(H123+H84+H45))) -> 0 | N1045: Totals Sales Value | P1045: =IF(ISERROR(IF(ISERROR((S123+S84+S45)),0,(S123+S84+S45))),0,IF(ISERROR((S123+S84+S45)),0,(S123+S84+S45))) -> 0
C1046: Totals Gross Margin | E1046: =IF(ISERROR(IF(ISERROR(E1045-(D104+D65+D25)),0,E1045-(D104+D65+D25))),0,IF(ISERROR(E1045-(D104+D65+D25)),0,E1045-(D104+D65+D25))) -> 0 | N1046: Totals Gross Margin | P1046: =IF(ISERROR(IF(ISERROR(P1045-(S124+S85+S46)),0,P1045-(S124+S85+S46))),0,IF(ISERROR(P1045-(S124+S85+S46)),0,P1045-(S124+S85+S46))) -> 0
C1047: Totals Gross Profit | E1047: =IF(ISERROR(IF(ISERROR((E1046/E1045)),0,(E1046/E1045))),0,IF(ISERROR((E1046/E1045)),0,(E1046/E1045))) -> 0 | N1047: Totals Gross Profit | P1047: =IF(ISERROR(IF(ISERROR((P1046/P1045)),0,(P1046/P1045))),0,IF(ISERROR((P1046/P1045)),0,(P1046/P1045))) -> 0
G1048: Lamb Carcase yield/costing summary
H1049: Total Sales Value | I1049: Gross Margin | K1049: Profit %
G1050: Traditional | H1050: =IF(ISERROR(IF(ISERROR(E1045),0,E1045)),0,IF(ISERROR(E1045),0,E1045)) -> 0 | I1050: =IF(ISERROR(IF(ISERROR(E1046),0,E1046)),0,IF(ISERROR(E1046),0,E1046)) -> 0 | K1050: =IF(ISERROR(IF(ISERROR(E1047),0,E1047)),0,IF(ISERROR(E1047),0,E1047)) -> 0
G1051: Alternative | H1051: =IF(ISERROR(IF(ISERROR(P1045),0,P1045)),0,IF(ISERROR(P1045),0,P1045)) -> 0 | I1051: =IF(ISERROR(IF(ISERROR(P1046),0,P1046)),0,IF(ISERROR(P1046),0,P1046)) -> 0 | K1051: =IF(ISERROR(IF(ISERROR(P1047),0,P1047)),0,IF(ISERROR(P1047),0,P1047)) -> 0
G1052: Increased Profit | H1052: =IF(ISERROR(IF(ISERROR(H1051-H1050),0,H1051-H1050)),0,IF(ISERROR(H1051-H1050),0,H1051-H1050)) -> 0 | I1052: =IF(ISERROR(IF(ISERROR(I1051-I1050),0,I1051-I1050)),0,IF(ISERROR(I1051-I1050),0,I1051-I1050)) -> 0 | K1052: =IF(ISERROR(IF(ISERROR(SUM(K1051-K1050)),0,SUM(K1051-K1050))),0,IF(ISERROR(SUM(K1051-K1050)),0,SUM(K1051-K1050))) -> 0

Sheet Beef primal cut yield (hidden)
F1: Beef Yield Comparsion
B4: Carcase weight (Kg) | C4: 165.424 | K4: Carcase weight (Kg) | L4: 160.328
B5: Carcase Grade | C5: R4L | K5: Carcase Grade | L5: R4L
B6: Carcase Cost/ Kg | C6: 3.58 | K6: Carcase Cost/ Kg | L6: 3.58
B7: Total Carcase Cost | C7: =C4*C6 -> 592.21792 | K7: Total Carcase Cost | L7: =L4*L6 -> 573.97424
F9: Topside- EBLEX Code: Topside B001
L11: `
B12: Table 1 | K12: Table 2
B13: Product name | C13: Topside-Joint Traditional | E13: Topside B004 | K13: Product name | L13: Topside Mini Joints with added fat | N13: Topside B006
B14: Primal weight | C14: 11.284 | D14: Percentage of Carcase | F14: =(C14/C4) -> 0.06821259309 | K14: Primal weight | L14: 10.54 | M14: Percentage of Carcase | O14: =(L14/L4) -> 0.06574023252
B15: Price Per Kg | C15: 5.25 | K15: Price Per Kg | L15: 5.25
B16: Wholesale cost: | C16: =(C15*C14) -> 59.241 | K16: Wholesale cost: | L16: =(L15*L14) -> 55.335
B19: Product description | C19: Eblex code | D19: Weight (Kg) | E19: Selling price (£/Kg) | F19: Value £ | K19: Product description | L19: Eblex code | M19: Weight (Kg) | N19: Selling price (£/Kg) | O19: Value£
B20: Topside Joints | C20: Topside B004 | F20: =(D20*E20) -> 0 | K20: Mini Joints | L20: Topside B006 | O20: =(M20*N20) -> 0
B21: Diced 98%vl | C21: Dice B001 | F21: =(D21*E21) -> 0 | K21: Tender Top Steak | L21: Topside B015 | O21: 0
B22: QSM Minced Beef | C22: Mince B001 | F22: 0 | K22: Diced 98%vl | L22: Dice B001 | O22: 0
F23: 0 | K23: QSM Minced Beef | L23: Mince B001 | O23: 0
F24: 0 | O24: 0
F25: 0 | O25: 0
F26: 0 | O26: 0
F27: 0 | O27: 0
F28: 0 | O28: 0
F29: 0 | O29: 0
F30: 0 | O30: 0
F31: 0 | O31: 0
C32: Total saleable meat | L32: Total saleable meat | M32: =SUM(M20:M31) -> 0
C33: Bone & Waste (Kg) | L33: Bone & Waste (Kg)
C34: Drip/Cutting loss(Kg) | L34: Drip/Cutting loss(Kg)
D36: Total Sales Value | F36: =SUM(F20:F31) -> 0 | M36: Total Sales Value | O36: =SUM(O20:O31) -> 0
D37: Gross Margin | F37: =SUM(F20:F31,-C16) -> -59.241 | M37: Gross Margin | O37: =SUM(O20:O31,-L16) -> -55.335
D38: Gross Profit | F38: =(F37/F36) ->  | M38: Gross Profit | O38: =(O37/O36) -> 
J40: Value | K40: Gross Margin | L40: Profit %
F41: Table 1 | J41: =(F36) -> 0 | K41: =(F37) -> -59.241 | L41: =(F38) -> 
F42: Table 2 | J42: =(O36) -> 0 | K42: =(O37) -> -55.335 | L42: =(O38) -> 
F43: Increased Profit | J43: =(J42-J41) -> 0 | K43: =(K42-K41) -> 3.906 | L43: =SUM(L42-L41) -> 
F47: Silverside- EBLEX Code: Silverside B001
L51: `
B52: Table 1 | K52: Table 2
B53: Product name | C53: Silverside Joint with added fat | E53: Silverside B002 | K53: Product name | L53: Premium Mini Joints with added fat | N53: Silveside B
B54: Primal weight | C54: 9.384 | D54: Percentage of Carcase | F54: =(C54/C4) -> 0.05672695619 | K54: Primal weight | L54: 9.164 | M54: Percentage of Carcase | O54: =(L54/L4) -> 0.05715782646
B55: Price Per Kg | C55: 4.85 | K55: Price Per Kg | L55: 4.85
B56: Wholesale cost: | C56: =(C55*C54) -> 45.5124 | K56: Wholesale cost: | L56: =(L55*L54) -> 44.4454
B58: Product description | C58: Eblex code | D58: Weight (Kg) | E58: Selling price (£/Kg) | F58: Value £ | K58: Product description | L58: Eblex code | M58: Weight (Kg) | N58: Selling price (£/Kg) | O58: Value£
B59: Silverside Joints | C59: Silveside B002 | F59: =(D59*E59) -> 0 | K59: Premium Mini Joints | O59: =(M59*N59) -> 0
B60: Diced 98%vl | C60: Dice B001 | F60: =(D60*E60) -> 0 | K60: Escallops(Salmon Cut) | L60: Silverside B004 | O60: 0
B61: QSM Minced Beef | C61: Mince B001 | F61: 0 | K61: Diced 98%vl | L61: Dice B001 | O61: 0
F62: 0 | K62: QSM Minced Beef | L62: Mince B001 | O62: 0
F63: 0 | O63: 0
F64: 0 | O64: 0
F65: 0 | O65: 0
F66: 0 | O66: 0
F67: 0 | O67: 0
F68: 0 | O68: 0
F69: 0 | O69: 0
F70: 0 | O70: 0
C71: Total saleable meat | D71: =SUM(D59:D70) -> 0 | L71: Total saleable meat | M71: =SUM(M59:M70) -> 0
C72: Bone & Waste (Kg) | L72: Bone & Waste (Kg)
C73: Drip/Cutting loss(Kg) | L73: Drip/Cutting loss(Kg)
D75: Total Sales Value | F75: =SUM(F59:F70) -> 0 | M75: Total Sales Value | O75: =SUM(O59:O70) -> 0
D76: Gross Margin | F76: =SUM(F59:F70,-C56) -> -45.5124 | M76: Gross Margin | O76: =SUM(O59:O70,-L56) -> -44.4454
D77: Gross Profit | F77: =(F76/F75) ->  | M77: Gross Profit | O77: =(O76/O75) -> 
J79: Value | K79: Gross Margin | L79: Profit %
F80: Table 1 | J80: =(F75) -> 0 | K80: =(F76) -> -45.5124 | L80: =(F77) -> 
F81: Table 2 | J81: =(O75) -> 0 | K81: =(O76) -> -44.4454 | L81: =(O77) -> 
F82: Increased Profit | J82: =(J81-J80) -> 0 | K82: =(K81-K80) -> 1.067 | L82: =SUM(L81-L80) -> 
F86: Heel Muscle- EBLEX Code: Leg B001
L90: `
B91: Table 1 | K91: Table 2
B92: Product name | C92: Dice 98% Visual Lean | E92: Leg B001 | K92: Product name | L92: Pavé(Heel Muscle) | N92: Leg B002
B93: Primal weight | C93: 2.486 | D93: Percentage of Carcase | F93: =(C93/C4) -> 0.01502804913 | K93: Primal weight | L93: 2.46 | M93: Percentage of Carcase | O93: =(L93/L4) -> 0.01534354573
B94: Price Per Kg | C94: 3.25 | K94: Price Per Kg | L94: 3.25
B95: Wholesale cost: | C95: =(C94*C93) -> 8.0795 | K95: Wholesale cost: | L95: =(L94*L93) -> 7.995
B97: Product description | C97: Eblex code | D97: Weight (Kg) | E97: Selling price (£/Kg) | F97: Value £ | K97: Product description | L97: Eblex code | M97: Weight (Kg) | N97: Selling price (£/Kg) | O97: Value£
B98: Dice 98% Visual Lean | C98: DiceB001 | F98: =(D98*E98) -> 0 | K98: Pavé(Heel Muscle) | L98: Leg B002 | O98: =(M98*N98) -> 0
B99: QSM Minced Beef | C99: Mince B001 | F99: =(D99*E99) -> 0 | K99: Dice 98% Visual Lean | L99: DiceB001 | O99: 0
F100: 0 | K100: QSM Minced Beef | L100: Mince B001 | O100: 0
F101: 0 | O101: 0
F102: 0 | O102: 0
F103: 0 | O103: 0
F104: 0 | O104: 0
F105: 0 | O105: 0
F106: 0 | O106: 0
F107: 0 | O107: 0
F108: 0 | O108: 0
F109: 0 | O109: 0
C110: Total saleable meat | D110: =SUM(D98:D109) -> 0 | L110: Total saleable meat | M110: =SUM(M98:M109) -> 0
C111: Bone & Waste (Kg) | D111: 0 | L111: Bone & Waste (Kg) | M111: 0
C112: Drip/Cutting loss(Kg) | D112: 0 | L112: Drip/Cutting loss(Kg) | M112: 0
D114: Total Sales Value | F114: =SUM(F98:F109) -> 0 | M114: Total Sales Value | O114: =SUM(O98:O109) -> 0
D115: Gross Margin | F115: =SUM(F98:F109,-C95) -> -8.0795 | M115: Gross Margin | O115: =SUM(O98:O109,-L95) -> -7.995
D116: Gross Profit | F116: =(F115/F114) ->  | M116: Gross Profit | O116: =(O115/O114) -> 
J118: Value | K118: Gross Margin | L118: Profit %
F119: Table 1 | J119: =(F114) -> 0 | K119: =(F115) -> -8.0795 | L119: =(F116) -> 
F120: Table 2 | J120: =(O114) -> 0 | K120: =(O115) -> -7.995 | L120: =(O116) -> 
F121: Increased Profit | J121: =(J120-J119) -> 0 | K121: =(K120-K119) -> 0.0845 | L121: =SUM(L120-L119) -> 
F125: Thick Flank- EBLEX Code: Thick Flank B001
L129: `
B130: Table 1 | K130: Table 2
B131: Product name | C131: Thick Flank Joints | E131: Thick Flank B002 | K131: Product name | L131: Thick Flank Seam Cut | N131: Thick flank B005
B132: Primal weight | C132: 6.586 | D132: Percentage of Carcase | F132: =(C132/C4) -> 0.03981284457 | K132: Primal weight | L132: 6.404 | M132: Percentage of Carcase | O132: =(L132/L4) -> 0.03994311661
B133: Price Per Kg | C133: 4.2 | K133: Price Per Kg | L133: 4.2
B134: Wholesale cost: | C134: =(C133*C132) -> 27.6612 | K134: Wholesale cost: | L134: =(L133*L132) -> 26.8968
B136: Product description | C136: Eblex code | D136: Weight (Kg) | E136: Selling price (£/Kg) | F136: Value £ | K136: Product description | L136: Eblex code | M136: Weight (Kg) | N136: Selling price (£/Kg) | O136: Value£
B137: Thick Flank Joints | C137: Thick flank B002 | F137: =(D137*E137) -> 0 | K137: Centre Cut Steaks | L137: Thick Flank B005 | O137: =(M137*N137) -> 0
B138: QSM Minced Beef | C138: Mince B001 | F138: =(D138*E138) -> 0 | K138: Escallops(Thick Flank) | L138: Thick Flank B005 | O138: 0
F139: 0 | K139: Pavé(Thick Flank) | L139: Thick Flank B007 | O139: 0
F140: 0 | K140: Dice 98% Visual Lean | L140: DiceB001 | O140: 0
F141: 0 | K141: QSM Minced Beef | L141: Mince B001 | O141: 0
F142: 0 | O142: 0
F143: 0 | O143: 0
F144: 0 | O144: 0
F145: 0 | O145: 0
F146: 0 | O146: 0
F147: 0 | O147: 0
F148: 0 | O148: 0
C149: Total saleable meat | D149: =SUM(D137:D148) -> 0 | L149: Total saleable meat | M149: =SUM(M137:M148) -> 0
C150: Bone & Waste (Kg) | D150: 0 | L150: Bone & Waste (Kg) | M150: 0
C151: Drip/Cutting loss(Kg) | D151: 0 | L151: Drip/Cutting loss(Kg) | M151: 0
D153: Total Sales Value | F153: =SUM(F137:F148) -> 0 | M153: Total Sales Value | O153: =SUM(O137:O148) -> 0
D154: Gross Margin | F154: =SUM(F137:F148,-C134) -> -27.6612 | M154: Gross Margin | O154: =SUM(O137:O148,-L134) -> -26.8968
D155: Gross Profit | F155: =(F154/F153) ->  | M155: Gross Profit | O155: =(O154/O153) -> 
J157: Value | K157: Gross Margin | L157: Profit %
F158: Table 1 | J158: =(F153) -> 0 | K158: =(F154) -> -27.6612 | L158: =(F155) -> 
F159: Table 2 | J159: =(O153) -> 0 | K159: =(O154) -> -26.8968 | L159: =(O155) -> 
F160: Increased Profit | J160: =(J159-J158) -> 0 | K160: =(K159-K158) -> 0.7644 | L160: =SUM(L159-L158) -> 
F164: D Rump (without tail)- EBLEX Code: Rump B004
L168: `
B169: Table 1 | K169: Table 2
B170: Product name | C170: Traditional Rump Steaks | E170: Rump B006 | K170: Product name | L170: Premium Prime Rump Steak | N170: Rump B003
B171: Primal weight | C171: 5.204 | D171: Percentage of Carcase | F171: =(C171/C4) -> 0.03145855499 | K171: Primal weight | L171: 5.368 | M171: Percentage of Carcase | O171: =(L171/L4) -> 0.03348136321
B172: Price Per Kg | C172: 6.5 | K172: Price Per Kg | L172: 6.5
B173: Wholesale cost: | C173: =(C172*C171) -> 33.826 | K173: Wholesale cost: | L173: =(L172*L171) -> 34.892
B175: Product description | C175: Eblex code | D175: Weight (Kg) | E175: Selling price (£/Kg) | F175: Value £ | K175: Product description | L175: Eblex code | M175: Weight (Kg) | N175: Selling price (£/Kg) | O175: Value£
B176: Traditional Rump Steaks | C176: Rump B006 | F176: =(D176*E176) -> 0 | K176: Prime Rump Steak | L176: Rump B003 | O176: =(M176*N176) -> 0
B177: Dice 98% Visual Lean | C177: DiceB001 | F177: =(D177*E177) -> 0 | K177: Bistro Rump Steak | L177: Rump B003 | O177: 0
B178: QSM Minced Beef | C178: Mince B001 | F178: 0 | K178: Picanha Steak | L178: Rump B013 | O178: 0
F179: 0 | K179: Dice 98% Visual Lean | L179: DiceB001 | O179: 0
F180: 0 | K180: QSM Minced Beef | L180: Mince B001 | O180: 0
F181: 0 | O181: 0
F182: 0 | O182: 0
F183: 0 | O183: 0
F184: 0 | O184: 0
F185: 0 | O185: 0
F186: 0 | O186: 0
F187: 0 | O187: 0
C188: Total saleable meat | D188: =SUM(D176:D187) -> 0 | L188: Total saleable meat | M188: =SUM(M176:M187) -> 0
C189: Bone & Waste (Kg) | D189: 0 | L189: Bone & Waste (Kg) | M189: 0
C190: Drip/Cutting loss(Kg) | D190: 0 | L190: Drip/Cutting loss(Kg) | M190: 0
D192: Total Sales Value | F192: =SUM(F176:F187) -> 0 | M192: Total Sales Value | O192: =SUM(O176:O187) -> 0
D193: Gross Margin | F193: =SUM(F176:F187,-C173) -> -33.826 | M193: Gross Margin | O193: =SUM(O176:O187,-L173) -> -34.892
D194: Gross Profit | F194: =(F193/F192) ->  | M194: Gross Profit | O194: =(O193/O192) -> 
J196: Value | K196: Gross Margin | L196: Profit %
F197: Table 1 | J197: =(F192) -> 0 | K197: =(F193) -> -33.826 | L197: =(F194) -> 
F198: Table 2 | J198: =(O192) -> 0 | K198: =(O193) -> -34.892 | L198: =(O194) -> 
F199: Increased Profit | J199: =(J198-J197) -> 0 | K199: =(K198-K197) -> -1.066 | L199: =SUM(L198-L197) -> 
F203: Rump Tail- EBLEX Code: Rump B012
L207: `
B208: Table 1 | K208: Table 2
B209: Product name | C209: Dice 98% Visual Lean | E209: Dice B001 | K209: Product name | L209: Rump Tail/Tri Tip Mini Joint | N209: Rump B020
B210: Primal weight | C210: 1.67 | D210: Percentage of Carcase | F210: =(C210/C4) -> 0.01009527034 | K210: Primal weight | L210: 1.564 | M210: Percentage of Carcase | O210: =(L210/L4) -> 0.009755002245
B211: Price Per Kg | C211: 5 | K211: Price Per Kg | L211: 5
B212: Wholesale cost: | C212: =(C211*C210) -> 8.35 | K212: Wholesale cost: | L212: =(L211*L210) -> 7.82
B214: Product description | C214: Eblex code | D214: Weight (Kg) | E214: Selling price (£/Kg) | F214: Value £ | K214: Product description | L214: Eblex code | M214: Weight (Kg) | N214: Selling price (£/Kg) | O214: Value£
B215: Dice 98% Visual Lean | C215: Dice B001 | F215: =(D215*E215) -> 0 | K215: Tri Tip Mini Joint | L215: Rump B020 | O215: =(M215*N215) -> 0
B216: QSM Minced Beef | C216: Mince B001 | F216: =(D216*E216) -> 0 | K216: Dice 98% Visual Lean | L216: DiceB001 | O216: 0
F217: 0 | K217: QSM Minced Beef | L217: Mince B001 | O217: 0
F218: 0 | O218: 0
F219: 0 | O219: 0
F220: 0 | O220: 0
F221: 0 | O221: 0
F222: 0 | O222: 0
F223: 0 | O223: 0
F224: 0 | O224: 0
F225: 0 | O225: 0
F226: 0 | O226: 0
C227: Total saleable meat | D227: =SUM(D215:D226) -> 0 | L227: Total saleable meat | M227: =SUM(M215:M226) -> 0
C228: Bone & Waste (Kg) | D228: 0 | L228: Bone & Waste (Kg) | M228: 0
C229: Drip/Cutting loss(Kg) | D229: 0 | L229: Drip/Cutting loss(Kg) | M229: 0
D231: Total Sales Value | F231: =SUM(F215:F226) -> 0 | M231: Total Sales Value | O231: =SUM(O215:O226) -> 0
D232: Gross Margin | F232: =SUM(F215:F226,-C212) -> -8.35 | M232: Gross Margin | O232: =SUM(O215:O226,-L212) -> -7.82
D233: Gross Profit | F233: =(F232/F231) ->  | M233: Gross Profit | O233: =(O232/O231) -> 
J235: Value | K235: Gross Margin | L235: Profit %
F236: Table 1 | J236: =(F231) -> 0 | K236: =(F232) -> -8.35 | L236: =(F233) -> 
F237: Table 2 | J237: =(O231) -> 0 | K237: =(O232) -> -7.82 | L237: =(O233) -> 
F238: Increased Profit | J238: =(J237-J236) -> 0 | K238: =(K237-K236) -> 0.53 | L238: =SUM(L237-L236) -> 
F242: Striploin- EBLEX Code: Sirloin B002
L246: `
B247: Table 1 | K247: Table 2
B248: Product name | C248: Sirloin Steak standard trim | E248: Sirloin B006 | K248: Product name | L248: Bone -in Porterhouse Steak | N248: Sirloin B017
B249: Primal weight | C249: 7.388 | D249: Percentage of Carcase | F249: =(C249/C4) -> 0.04466099236 | K249: Primal weight | L249: 11.33 | M249: Percentage of Carcase | O249: =(L249/L4) -> 0.07066763136
B250: Price Per Kg | C250: 11 | K250: Price Per Kg | L250: 8.3
B251: Wholesale cost: | C251: =(C250*C249) -> 81.268 | K251: Wholesale cost: | L251: =(L250*L249) -> 94.039
B253: Product description | C253: Eblex code | D253: Weight (Kg) | E253: Selling price (£/Kg) | F253: Value £ | K253: Product description | L253: Eblex code | M253: Weight (Kg) | N253: Selling price (£/Kg) | O253: Value£
B254: Sirloin Steak standard | C254: Sirloin B006 | F254: =(D254*E254) -> 0 | K254: Porterhouse Steak | L254: Sirloin B017 | O254: =(M254*N254) -> 0
B255: QSM Minced Beef | C255: Mince B001 | F255: =(D255*E255) -> 0 | K255: Bone in Sirloin Steak | L255: Sirloin B018 | O255: 0
F256: 0 | O256: 0
F257: 0 | O257: 0
F258: 0 | O258: 0
F259: 0 | O259: 0
F260: 0 | O260: 0
... 603 more rows

Sheet Primal specification yield (2 (hidden)
G1: Beef Yield Comparsion
B4: Carcase weight (Kg) | C4: 165.424 | L4: Carcase weight (Kg) | M4: 160.328
B5: Carcase Grade | C5: R4L | L5: Carcase Grade
B6: Carcase Cost/ Kg | L6: Carcase Cost/ Kg
B7: Total Carcase Cost | C7: =C4*C6 -> 0 | L7: Total Carcase Cost | M7: =M4*M6 -> 0
G9: Topside- EBLEX Code: Topside B001
M11: `
B12: Table 1 | L12: Table 2
B13: Product name | C13: Topside-Joint Traditional | F13: Topside B004 | L13: Product name | M13: Ranch Steaks | O13: Topside B009
B14: Primal weight | C14: 11.284 | D14: Percentage of Carcase | G14: =(C14/C4) -> 0.06821259309 | L14: Primal weight | M14: 10.54 | N14: Percentage of Carcase | P14: =(M14/M4) -> 0.06574023252
B15: Price Per Kg | L15: Price Per Kg
B16: Wholesale cost: | C16: =(C15*C14) -> 0 | L16: Wholesale cost: | M16: =(M15*M14) -> 0
B19: Product description | C19: Eblex code | D19: Weight (Kg) | E19: Red Meat Yield % | F19: Selling price (£/Kg) | G19: Value £ | L19: Product description | M19: Eblex code | N19: Weight (Kg) | O19: Selling price (£/Kg) | P19: Value£
B20: Topside Joints | C20: Topside B004 | D20: 10.17 | E20: =(D20/C14) -> 0.9012761432 | G20: =(D20*F20) -> 0 | L20: Ranch Steaks | M20: Topside B009 | N20: 5.53 | P20: =(N20*O20) -> 0
B21: Diced 98%vl | C21: Dice B001 | D21: 0.306 | E21: =(D21/C14) -> 0.02711804325 | G21: =(D21*F21) -> 0 | L21: Tender Top Steak | M21: Topside B015 | N21: 1.662 | P21: 0
B22: Trim 85% Visual Lean | C22: Trim B008 | D22: 0.664 | E22: =(D22/C14) -> 0.05884438143 | G22: 0 | L22: Diced 98%vl | M22: Dice B001 | N22: 2.198 | P22: 0
G23: 0 | L23: Trim 85% Visual Lean | M23: Trim B008 | N23: 1.078 | P23: 0
G24: 0 | P24: 0
G25: 0 | P25: 0
G26: 0 | P26: 0
G27: 0 | P27: 0
G28: 0 | P28: 0
G29: 0 | P29: 0
G30: 0 | P30: 0
G31: 0 | P31: 0
C32: Total saleable meat | D32: =SUM(D20:D31) -> 11.14 | E32: =(D32/C14) -> 0.9872385679 | M32: Total saleable meat | N32: =SUM(N20:N31) -> 10.468
C33: Bone & Waste (Kg) | D33: 0.132 | E33: =(D33/C14) -> 0.01169797944 | M33: Bone & Waste (Kg) | N33: 0.064
C34: Drip/Cutting loss(Kg) | D34: =(C14-D32-D33) -> 0.012 | E34: =(D34/C14) -> 0.001063452676 | M34: Drip/Cutting loss(Kg) | N34: =(M14-N32-N33) -> 0.008
D36: Total Sales Value | G36: =SUM(G20:G31) -> 0 | N36: Total Sales Value | P36: =SUM(P20:P31) -> 0
D37: Gross Margin | G37: =SUM(G20:G31,-C16) -> 0 | N37: Gross Margin | P37: =SUM(P20:P31,-M16) -> 0
D38: Gross Profit | G38: =(G37/G36) ->  | N38: Gross Profit | P38: =(P37/P36) -> 
K40: Value | L40: Gross Margin | M40: Profit %
G41: Table 1 | K41: =(G36) -> 0 | L41: =(G37) -> 0 | M41: =(G38) -> 
G42: Table 2 | K42: =(P36) -> 0 | L42: =(P37) -> 0 | M42: =(P38) -> 
G43: Increased Profit | K43: =(K42-K41) -> 0 | L43: =(L42-L41) -> 0 | M43: =SUM(M42-M41) -> 
G47: Silverside- EBLEX Code: Silverside B001
M51: `
B52: Table 1 | L52: Table 2
B53: Product name | C53: Silverside Joint with added fat | F53: Silverside B002 | L53: Product name | M53: Silverside Mini Joints with added fat | O53: Silveside B003
B54: Primal weight | C54: 9.384 | D54: Percentage of Carcase | G54: =(C54/C4) -> 0.05672695619 | L54: Primal weight | M54: 9.164 | N54: Percentage of Carcase | P54: =(M54/M4) -> 0.05715782646
B55: Price Per Kg | L55: Price Per Kg
B56: Wholesale cost: | C56: =(C55*C54) -> 0 | L56: Wholesale cost: | M56: =(M55*M54) -> 0
B58: Product description | C58: Eblex code | D58: Weight (Kg) | F58: Selling price (£/Kg) | G58: Value £ | L58: Product description | M58: Eblex code | N58: Weight (Kg) | O58: Selling price (£/Kg) | P58: Value£
B59: Silverside Joints | C59: Silveside B002 | D59: 8.876 | G59: =(D59*F59) -> 0 | L59: Silverside Mini Joints(with added fat) | M59: Silverside B003 | N59: 6.024 | P59: =(N59*O59) -> 0
B60: Diced 98%vl | C60: Dice B001 | G60: =(D60*F60) -> 0 | L60: Escallops(Salmon Cut) | M60: Silverside B004 | N60: 2.126 | P60: 0
B61: Trim 85% Visual Lean | C61: Trim B008 | D61: 0.426 | G61: 0 | L61: Diced 98%vl | M61: Dice B001 | N61: 0.248 | P61: 0
G62: 0 | L62: Trim 85% Visual Lean | M62: Trim B008 | N62: 0.952 | P62: 0
G63: 0 | P63: 0
G64: 0 | P64: 0
G65: 0 | P65: 0
G66: 0 | P66: 0
G67: 0 | P67: 0
G68: 0 | P68: 0
G69: 0 | P69: 0
G70: 0 | P70: 0
C71: Total saleable meat | D71: =SUM(D59:D70) -> 9.302 | M71: Total saleable meat | N71: =SUM(N59:N70) -> 9.35
C72: Bone & Waste (Kg) | D72: 0.04 | M72: Bone & Waste (Kg) | N72: 0.272
C73: Drip/Cutting loss(Kg) | D73: =(C54-D71-D72) -> 0.042 | M73: Drip/Cutting loss(Kg) | N73: =(M54-N71-N72) -> -0.458
D75: Total Sales Value | G75: =SUM(G59:G70) -> 0 | N75: Total Sales Value | P75: =SUM(P59:P70) -> 0
D76: Gross Margin | G76: =SUM(G59:G70,-C56) -> 0 | N76: Gross Margin | P76: =SUM(P59:P70,-M56) -> 0
D77: Gross Profit | G77: =(G76/G75) ->  | N77: Gross Profit | P77: =(P76/P75) -> 
K79: Value | L79: Gross Margin | M79: Profit %
G80: Table 1 | K80: =(G75) -> 0 | L80: =(G76) -> 0 | M80: =(G77) -> 
G81: Table 2 | K81: =(P75) -> 0 | L81: =(P76) -> 0 | M81: =(P77) -> 
G82: Increased Profit | K82: =(K81-K80) -> 0 | L82: =(L81-L80) -> 0 | M82: =SUM(M81-M80) -> 
G86: Heel Muscle- EBLEX Code: Leg B001
M90: `
B91: Table 1 | L91: Table 2
B92: Product name | C92: Dice 98% Visual Lean | F92: Leg B001 | L92: Product name | M92: Pavé(Heel Muscle) | O92: Leg B002
B93: Primal weight | C93: 2.486 | D93: Percentage of Carcase | G93: =(C93/C4) -> 0.01502804913 | L93: Primal weight | M93: 2.46 | N93: Percentage of Carcase | P93: =(M93/M4) -> 0.01534354573
B94: Price Per Kg | L94: Price Per Kg
B95: Wholesale cost: | C95: =(C94*C93) -> 0 | L95: Wholesale cost: | M95: =(M94*M93) -> 0
B97: Product description | C97: Eblex code | D97: Weight (Kg) | F97: Selling price (£/Kg) | G97: Value £ | L97: Product description | M97: Eblex code | N97: Weight (Kg) | O97: Selling price (£/Kg) | P97: Value£
B98: Dice 98% Visual Lean | C98: DiceB001 | D98: 1.558 | G98: =(D98*F98) -> 0 | L98: Pavé(Heel Muscle) | M98: Leg B002 | N98: 0.786 | P98: =(N98*O98) -> 0
B99: Trim 85% Visual Lean | C99: Trim B008 | D99: 0.756 | G99: =(D99*F99) -> 0 | L99: Dice 98% Visual Lean | M99: DiceB001 | N99: 0.362 | P99: 0
G100: 0 | L100: Trim 85% Visual Lean | M100: Trim B008 | N100: 1.16 | P100: 0
G101: 0 | P101: 0
G102: 0 | P102: 0
G103: 0 | P103: 0
G104: 0 | P104: 0
G105: 0 | P105: 0
G106: 0 | P106: 0
G107: 0 | P107: 0
G108: 0 | P108: 0
G109: 0 | P109: 0
C110: Total saleable meat | D110: =SUM(D98:D109) -> 2.314 | M110: Total saleable meat | N110: =SUM(N98:N109) -> 2.308
C111: Bone & Waste (Kg) | D111: 0.166 | M111: Bone & Waste (Kg) | N111: 0.116
C112: Drip/Cutting loss(Kg) | D112: =(C93-D110-D111) -> 0.006 | M112: Drip/Cutting loss(Kg) | N112: =(M93-N110-N111) -> 0.036
D114: Total Sales Value | G114: =SUM(G98:G109) -> 0 | N114: Total Sales Value | P114: =SUM(P98:P109) -> 0
D115: Gross Margin | G115: =SUM(G98:G109,-C95) -> 0 | N115: Gross Margin | P115: =SUM(P98:P109,-M95) -> 0
D116: Gross Profit | G116: =(G115/G114) ->  | N116: Gross Profit | P116: =(P115/P114) -> 
K118: Value | L118: Gross Margin | M118: Profit %
G119: Table 1 | K119: =(G114) -> 0 | L119: =(G115) -> 0 | M119: =(G116) -> 
G120: Table 2 | K120: =(P114) -> 0 | L120: =(P115) -> 0 | M120: =(P116) -> 
G121: Increased Profit | K121: =(K120-K119) -> 0 | L121: =(L120-L119) -> 0 | M121: =SUM(M120-M119) -> 
G125: Thick Flank- EBLEX Code: Thick Flank B001
M129: `
B130: Table 1 | L130: Table 2
B131: Product name | C131: Thick Flank Joints | F131: Thick Flank B002 | L131: Product name | M131: Thick Flank Seam Cut | O131: Thick flank B005
B132: Primal weight | C132: 6.586 | D132: Percentage of Carcase | G132: =(C132/C4) -> 0.03981284457 | L132: Primal weight | M132: 6.404 | N132: Percentage of Carcase | P132: =(M132/M4) -> 0.03994311661
B133: Price Per Kg | L133: Price Per Kg
B134: Wholesale cost: | C134: =(C133*C132) -> 0 | L134: Wholesale cost: | M134: =(M133*M132) -> 0
B136: Product description | C136: Eblex code | D136: Weight (Kg) | F136: Selling price (£/Kg) | G136: Value £ | L136: Product description | M136: Eblex code | N136: Weight (Kg) | O136: Selling price (£/Kg) | P136: Value£
B137: Thick Flank Joints | C137: Thick flank B002 | D137: 6.166 | G137: =(D137*F137) -> 0 | L137: Centre Cut Steaks | M137: Thick Flank B005 | N137: 2.132 | P137: =(N137*O137) -> 0
B138: Trim 85% Visual Lean | C138: Trim B008 | D138: 0.266 | G138: =(D138*F138) -> 0 | L138: Escallops(Thick Flank) | M138: Thick Flank B005 | N138: 1.984 | P138: 0
G139: 0 | L139: Pavé(Thick Flank) | M139: Thick Flank B007 | N139: 0.486 | P139: 0
G140: 0 | L140: Dice 98% Visual Lean | M140: DiceB001 | N140: 0.465 | P140: 0
G141: 0 | L141: Trim 85% Visual Lean | M141: Trim B008 | N141: 1.138 | P141: 0
G142: 0 | P142: 0
G143: 0 | P143: 0
G144: 0 | P144: 0
G145: 0 | P145: 0
G146: 0 | P146: 0
G147: 0 | P147: 0
G148: 0 | P148: 0
C149: Total saleable meat | D149: =SUM(D137:D148) -> 6.432 | M149: Total saleable meat | N149: =SUM(N137:N148) -> 6.205
C150: Bone & Waste (Kg) | D150: 0.148 | M150: Bone & Waste (Kg) | N150: 0.142
C151: Drip/Cutting loss(Kg) | D151: =(C132-D149-D150) -> 0.006 | M151: Drip/Cutting loss(Kg) | N151: =(M132-N149-N150) -> 0.057
D153: Total Sales Value | G153: =SUM(G137:G148) -> 0 | N153: Total Sales Value | P153: =SUM(P137:P148) -> 0
D154: Gross Margin | G154: =SUM(G137:G148,-C134) -> 0 | N154: Gross Margin | P154: =SUM(P137:P148,-M134) -> 0
D155: Gross Profit | G155: =(G154/G153) ->  | N155: Gross Profit | P155: =(P154/P153) -> 
K157: Value | L157: Gross Margin | M157: Profit %
G158: Table 1 | K158: =(G153) -> 0 | L158: =(G154) -> 0 | M158: =(G155) -> 
G159: Table 2 | K159: =(P153) -> 0 | L159: =(P154) -> 0 | M159: =(P155) -> 
G160: Increased Profit | K160: =(K159-K158) -> 0 | L160: =(L159-L158) -> 0 | M160: =SUM(M159-M158) -> 
G164: D Rump (without tail)- EBLEX Code: Rump B004
M168: `
B169: Table 1 | L169: Table 2
B170: Product name | C170: Traditional Rump Steaks | F170: Rump B006 | L170: Product name | M170: Premium Prime Rump Steak | O170: Rump B003
B171: Primal weight | C171: 5.204 | D171: Percentage of Carcase | G171: =(C171/C4) -> 0.03145855499 | L171: Primal weight | M171: 5.368 | N171: Percentage of Carcase | P171: =(M171/M4) -> 0.03348136321
B172: Price Per Kg | L172: Price Per Kg
B173: Wholesale cost: | C173: =(C172*C171) -> 0 | L173: Wholesale cost: | M173: =(M172*M171) -> 0
B175: Product description | C175: Eblex code | D175: Weight (Kg) | F175: Selling price (£/Kg) | G175: Value £ | L175: Product description | M175: Eblex code | N175: Weight (Kg) | O175: Selling price (£/Kg) | P175: Value£
B176: Traditional Rump Steaks | C176: Rump B006 | D176: 4.984 | G176: =(D176*F176) -> 0 | L176: Prime Rump Steak | M176: Rump B003 | N176: 2.402 | P176: =(N176*O176) -> 0
B177: Dice 98% Visual Lean | C177: DiceB001 | G177: =(D177*F177) -> 0 | L177: Bistro Rump Steak | M177: Rump B003 | N177: 1.174 | P177: 0
B178: Trim 85% Visual Lean | C178: Trim B008 | D178: 0.152 | G178: 0 | L178: Picanha Steak | M178: Rump B013 | N178: 0.92 | P178: 0
G179: 0 | L179: Rump Burger Trim | N179: 0.546 | P179: 0
G180: 0 | P180: 0
G181: 0 | P181: 0
G182: 0 | P182: 0
G183: 0 | P183: 0
G184: 0 | P184: 0
G185: 0 | P185: 0
G186: 0 | P186: 0
G187: 0 | P187: 0
C188: Total saleable meat | D188: =SUM(D176:D187) -> 5.136 | M188: Total saleable meat | N188: =SUM(N176:N187) -> 5.042
C189: Bone & Waste (Kg) | D189: 0.062 | M189: Bone & Waste (Kg) | N189: 0.324
C190: Drip/Cutting loss(Kg) | D190: =(C171-D188-D189) -> 0.006 | M190: Drip/Cutting loss(Kg) | N190: =(M171-N188-N189) -> 0.002
D192: Total Sales Value | G192: =SUM(G176:G187) -> 0 | N192: Total Sales Value | P192: =SUM(P176:P187) -> 0
D193: Gross Margin | G193: =SUM(G176:G187,-C173) -> 0 | N193: Gross Margin | P193: =SUM(P176:P187,-M173) -> 0
D194: Gross Profit | G194: =(G193/G192) ->  | N194: Gross Profit | P194: =(P193/P192) -> 
K196: Value | L196: Gross Margin | M196: Profit %
G197: Table 1 | K197: =(G192) -> 0 | L197: =(G193) -> 0 | M197: =(G194) -> 
G198: Table 2 | K198: =(P192) -> 0 | L198: =(P193) -> 0 | M198: =(P194) -> 
G199: Increased Profit | K199: =(K198-K197) -> 0 | L199: =(L198-L197) -> 0 | M199: =SUM(M198-M197) -> 
G203: Rump Tail- EBLEX Code: Rump B012
M207: `
B208: Table 1 | L208: Table 2
B209: Product name | C209: Dice 98% Visual Lean | F209: Dice B001 | L209: Product name | M209: Rump Tail/Tri Tip Mini Joint | O209: Rump B020
B210: Primal weight | C210: 1.67 | D210: Percentage of Carcase | G210: =(C210/C4) -> 0.01009527034 | L210: Primal weight | M210: 1.564 | N210: Percentage of Carcase | P210: =(M210/M4) -> 0.009755002245
B211: Price Per Kg | L211: Price Per Kg
B212: Wholesale cost: | C212: =(C211*C210) -> 0 | L212: Wholesale cost: | M212: =(M211*M210) -> 0
B214: Product description | C214: Eblex code | D214: Weight (Kg) | F214: Selling price (£/Kg) | G214: Value £ | L214: Product description | M214: Eblex code | N214: Weight (Kg) | O214: Selling price (£/Kg) | P214: Value£
B215: Dice 98% Visual Lean | C215: Dice B001 | D215: 1.362 | G215: =(D215*F215) -> 0 | L215: Tri Tip Mini Joint | M215: Rump B020 | N215: 1.04 | P215: =(N215*O215) -> 0
B216: Trim 85% Visual Lean | C216: Trim B008 | D216: 0.184 | G216: =(D216*F216) -> 0 | L216: Dice 98% Visual Lean | M216: DiceB001 | N216: 0.274 | P216: 0
G217: 0 | L217: Trim 85% Visual Lean | M217: Trim B008 | N217: 0.174 | P217: 0
G218: 0 | P218: 0
G219: 0 | P219: 0
G220: 0 | P220: 0
G221: 0 | P221: 0
G222: 0 | P222: 0
G223: 0 | P223: 0
G224: 0 | P224: 0
G225: 0 | P225: 0
G226: 0 | P226: 0
C227: Total saleable meat | D227: =SUM(D215:D226) -> 1.546 | M227: Total saleable meat | N227: =SUM(N215:N226) -> 1.488
C228: Bone & Waste (Kg) | D228: 0.124 | M228: Bone & Waste (Kg) | N228: 0.054
C229: Drip/Cutting loss(Kg) | D229: =(C210-D227-D228) -> -1.110223025e-16 | M229: Drip/Cutting loss(Kg) | N229: =(M210-N227-N228) -> 0.022
D231: Total Sales Value | G231: =SUM(G215:G226) -> 0 | N231: Total Sales Value | P231: =SUM(P215:P226) -> 0
D232: Gross Margin | G232: =SUM(G215:G226,-C212) -> 0 | N232: Gross Margin | P232: =SUM(P215:P226,-M212) -> 0
D233: Gross Profit | G233: =(G232/G231) ->  | N233: Gross Profit | P233: =(P232/P231) -> 
K235: Value | L235: Gross Margin | M235: Profit %
G236: Table 1 | K236: =(G231) -> 0 | L236: =(G232) -> 0 | M236: =(G233) -> 
G237: Table 2 | K237: =(P231) -> 0 | L237: =(P232) -> 0 | M237: =(P233) -> 
G238: Increased Profit | K238: =(K237-K236) -> 0 | L238: =(L237-L236) -> 0 | M238: =SUM(M237-M236) -> 
G242: Striploin- EBLEX Code: Sirloin B002
M246: `
B247: Table 1 | L247: Table 2
B248: Product name | C248: Sirloin Steak standard trim | F248: Sirloin B006 | L248: Product name | M248: Bone -in Porterhouse Steak | O248: Sirloin B017
B249: Primal weight | C249: 7.388 | D249: Percentage of Carcase | G249: =(C249/C4) -> 0.04466099236 | L249: Primal weight | M249: 11.33 | N249: Percentage of Carcase | P249: =(M249/M4) -> 0.07066763136
B250: Price Per Kg | L250: Price Per Kg
B251: Wholesale cost: | C251: =(C250*C249) -> 0 | L251: Wholesale cost: | M251: =(M250*M249) -> 0
B253: Product description | C253: Eblex code | D253: Weight (Kg) | F253: Selling price (£/Kg) | G253: Value £ | L253: Product description | M253: Eblex code | N253: Weight (Kg) | O253: Selling price (£/Kg) | P253: Value£
B254: Sirloin Steak standard | C254: Sirloin B006 | D254: 6.83 | G254: =(D254*F254) -> 0 | L254: Porterhouse Steak | M254: Sirloin B017 | N254: 3.968 | P254: =(N254*O254) -> 0
B255: Trim 85% Visual Lean | C255: Trim B008 | D255: 0.39 | G255: =(D255*F255) -> 0 | L255: Bone in Sirloin Steak | M255: Sirloin B018 | N255: 4.786 | P255: 0
G256: 0 | L256: Stir Fry of Beef | M256: Stir Fry B004 | N256: 0.56 | P256: 0
G257: 0 | L257: Trim 85% Visual Lean | M257: Trim B008 | N257: 0.21 | P257: 0
G258: 0 | P258: 0
G259: 0 | P259: 0
G260: 0 | P260: 0
... 603 more rows

Sheet Beef side cut yield trad-alt2 (hidden)
G1: Beef Yield Comparsion
B4: Carcase weight (Kg) | C4: 165.424 | L4: Carcase weight (Kg) | M4: 160.328
B5: Carcase Grade | C5: R4L | L5: Carcase Grade | M5: R4L
B6: Carcase Cost/ Kg | C6: 3.58 | L6: Carcase Cost/ Kg | M6: 3.58
B7: Total Carcase Cost | C7: =C4*C6 -> 592.21792 | L7: Total Carcase Cost | M7: =M4*M6 -> 573.97424
G9: Topside- EBLEX Code: Topside B001
M11: `
B12: Table 1 | L12: Table 2
B13: Product name | C13: Topside-Joint Traditional | E13: Topside B004 | L13: Product name | M13: Ranch Steaks | O13: Topside B009
B14: Primal weight | C14: 11.284 | D14: Percentage of Carcase | G14: =(C14/C4) -> 0.06821259309 | L14: Primal weight | M14: 10.54 | N14: Percentage of Carcase | Q14: =(M14/M4) -> 0.06574023252
B15: Price Per Kg | C15: 5.25 | L15: Price Per Kg | M15: 5.25
B16: Wholesale cost: | C16: =(C15*C14) -> 59.241 | L16: Wholesale cost: | M16: =(M15*M14) -> 55.335
B19: Product description | C19: Eblex code | D19: Weight (Kg) | E19: Red Meat Yield % | F19: Selling price (£/Kg) | G19: Value £ | L19: Product description | M19: Eblex code | N19: Weight (Kg) | O19: Red Meat Yield % | P19: Selling price (£/Kg) | Q19: Value£
B20: Topside Joints | C20: Topside B004 | D20: 10.17 | E20: =(D20/C14) -> 0.9012761432 | F20: 12.96 | G20: =(D20*F20) -> 131.8032 | L20: Ranch Steaks | M20: Topside B009 | N20: 5.53 | O20: =(N20/M14) -> 0.5246679317 | P20: 14.86 | Q20: =(N20*P20) -> 82.1758
B21: Diced 98%vl | C21: Dice B001 | D21: 0.306 | E21: =(D21/C14) -> 0.02711804325 | F21: 10 | G21: =(D21*F21) -> 3.06 | L21: Tender Top Steak | M21: Topside B015 | N21: 1.662 | O21: =(N21/M14) -> 0.1576850095 | P21: 14.86 | Q21: 24.69732
B22: Trim 85% Visual Lean | C22: Trim B008 | D22: 0.664 | E22: =(D22/C14) -> 0.05884438143 | F22: 7 | G22: 4.648 | L22: Diced 98%vl | M22: Dice B001 | N22: 2.198 | O22: =(N22/M14) -> 0.2085388994 | P22: 10 | Q22: 21.98
G23: 0 | L23: Trim 85% Visual Lean | M23: Trim B008 | N23: 1.078 | O23: =(N23/M14) -> 0.1022770398 | P23: 7 | Q23: 7.546
G24: 0 | O24: =(N24/M14) -> 0 | Q24: 0
G25: 0 | O25: =(N25/M14) -> 0 | Q25: 0
G26: 0 | O26: =(N26/M14) -> 0 | Q26: 0
G27: 0 | O27: =(N27/M14) -> 0 | Q27: 0
G28: 0 | O28: =(N28/M14) -> 0 | Q28: 0
G29: 0 | O29: =(N29/M14) -> 0 | Q29: 0
G30: 0 | O30: =(N30/M14) -> 0 | Q30: 0
G31: 0 | O31: =(N31/M14) -> 0 | Q31: 0
C32: Total saleable meat | D32: =SUM(D20:D31) -> 11.14 | E32: =(D32/C14) -> 0.9872385679 | M32: Total saleable meat | N32: =SUM(N20:N31) -> 10.468 | O32: =(N32/M14) -> 0.9931688805
C33: Bone & Waste (Kg) | D33: 0.132 | E33: =(D33/C14) -> 0.01169797944 | M33: Bone & Waste (Kg) | N33: 0.064 | O33: =(N33/M14) -> 0.006072106262
C34: Drip/Cutting loss(Kg) | D34: =(C14-D32-D33) -> 0.012 | E34: =(D34/C14) -> 0.001063452676 | M34: Drip/Cutting loss(Kg) | N34: =(M14-N32-N33) -> 0.008 | O34: =(N34/M14) -> 0.0007590132827
D36: Total Sales Value | G36: =SUM(G20:G31) -> 139.5112 | N36: Total Sales Value | Q36: =SUM(Q20:Q31) -> 136.39912
D37: Gross Margin | G37: =SUM(G20:G31,-C16) -> 80.2702 | N37: Gross Margin | Q37: =SUM(Q20:Q31,-M16) -> 81.06412
D38: Gross Profit | G38: =(G37/G36) -> 0.5753674257 | N38: Gross Profit | Q38: =(Q37/Q36) -> 0.5943155645
G40: Primal summary | K40: Value | L40: Gross Margin | M40: Profit %
G41: Table 1 | K41: =(G36) -> 139.5112 | L41: =(G37) -> 80.2702 | M41: =(G38) -> 0.5753674257
G42: Table 2 | K42: =(Q36) -> 136.39912 | L42: =(Q37) -> 81.06412 | M42: =(Q38) -> 0.5943155645
G43: Increased Profit | K43: =(K42-K41) -> -3.11208 | L43: =(L42-L41) -> 0.79392 | M43: =SUM(M42-M41) -> 0.0189481388
G47: Silverside- EBLEX Code: Silverside B001
M51: `
B52: Table 1 | L52: Table 2
B53: Product name | C53: Silverside Joint with added fat | F53: Silverside B002 | L53: Product name | M53: Silverside Mini Joints with added fat | P53: Silveside B003
B54: Primal weight | C54: 9.384 | D54: Percentage of Carcase | G54: =(C54/C4) -> 0.05672695619 | L54: Primal weight | M54: 9.164 | N54: Percentage of Carcase | Q54: =(M54/M4) -> 0.05715782646
B55: Price Per Kg | C55: 4.85 | L55: Price Per Kg | M55: 4.85
B56: Wholesale cost: | C56: =(C55*C54) -> 45.5124 | L56: Wholesale cost: | M56: =(M55*M54) -> 44.4454
B58: Product description | C58: Eblex code | D58: Weight (Kg) | E58: Red Meat Yield % | F58: Selling price (£/Kg) | G58: Value £ | L58: Product description | M58: Eblex code | N58: Weight (Kg) | O58: Red Meat Yield % | P58: Selling price (£/Kg) | Q58: Value£
B59: Silverside Joints | C59: Silveside B002 | D59: 8.876 | E59: =(D59/C54) -> 0.9458653026 | F59: 11.5 | G59: =(D59*F59) -> 102.074 | L59: Silverside Mini Joints(with added fat) | M59: Silverside B003 | N59: 5.564 | O59: =(N59/M54) -> 0.6071584461 | P59: 11.5 | Q59: =(N59*P59) -> 63.986
B60: Diced 98%vl | C60: Dice B001 | E60: =(D60/C54) -> 0 | G60: =(D60*F60) -> 0 | L60: Escallops(Salmon Cut) | M60: Silverside B004 | N60: 2.126 | O60: =(N60/M54) -> 0.2319947621 | P60: 14.86 | Q60: 31.59236
B61: Trim 85% Visual Lean | C61: Trim B008 | D61: 0.426 | E61: =(D61/C54) -> 0.04539641944 | F61: 7 | G61: 2.982 | L61: Diced 98%vl | M61: Dice B001 | N61: 0.248 | O61: =(N61/M54) -> 0.02706241816 | P61: 10 | Q61: 2.48
E62: =(D62/C54) -> 0 | G62: 0 | L62: Trim 85% Visual Lean | M62: Trim B008 | N62: 0.952 | O62: =(N62/M54) -> 0.1038847665 | P62: 7 | Q62: 6.664
E63: =(D63/C54) -> 0 | G63: 0 | O63: =(N63/M54) -> 0 | Q63: 0
E64: =(D64/C54) -> 0 | G64: 0 | O64: =(N64/M54) -> 0 | Q64: 0
E65: =(D65/C54) -> 0 | G65: 0 | O65: =(N65/M54) -> 0 | Q65: 0
E66: =(D66/C54) -> 0 | G66: 0 | O66: =(N66/M54) -> 0 | Q66: 0
E67: =(D67/C54) -> 0 | G67: 0 | O67: =(N67/M54) -> 0 | Q67: 0
E68: =(D68/C54) -> 0 | G68: 0 | O68: =(N68/M54) -> 0 | Q68: 0
E69: =(D69/C54) -> 0 | G69: 0 | O69: =(N69/M54) -> 0 | Q69: 0
E70: =(D70/C54) -> 0 | G70: 0 | O70: =(N70/M54) -> 0 | Q70: 0
C71: Total saleable meat | D71: =SUM(D59:D70) -> 9.302 | E71: =(D71/C54) -> 0.9912617221 | M71: Total saleable meat | N71: =SUM(N59:N70) -> 8.89 | O71: =(N71/M54) -> 0.9701003928
C72: Bone & Waste (Kg) | D72: 0.04 | E72: =(D72/C54) -> 0.004262574595 | M72: Bone & Waste (Kg) | N72: 0.272 | O72: =(N72/M54) -> 0.02968136185
C73: Drip/Cutting loss(Kg) | D73: =(C54-D71-D72) -> 0.042 | E73: =(D73/C54) -> 0.004475703325 | M73: Drip/Cutting loss(Kg) | N73: =(M54-N71-N72) -> 0.002 | O73: =(N73/M54) -> 0.0002182453077
D75: Total Sales Value | G75: =SUM(G59:G70) -> 105.056 | N75: Total Sales Value | Q75: =SUM(Q59:Q70) -> 104.72236
D76: Gross Margin | G76: =SUM(G59:G70,-C56) -> 59.5436 | N76: Gross Margin | Q76: =SUM(Q59:Q70,-M56) -> 60.27696
D77: Gross Profit | G77: =(G76/G75) -> 0.5667796223 | N77: Gross Profit | Q77: =(Q76/Q75) -> 0.5755882507
K79: Value | L79: Gross Margin | M79: Profit %
G80: Table 1 | K80: =(G75) -> 105.056 | L80: =(G76) -> 59.5436 | M80: =(G77) -> 0.5667796223
G81: Table 2 | K81: =(Q75) -> 104.72236 | L81: =(Q76) -> 60.27696 | M81: =(Q77) -> 0.5755882507
G82: Increased Profit | K82: =(K81-K80) -> -0.33364 | L82: =(L81-L80) -> 0.73336 | M82: =SUM(M81-M80) -> 0.008808628388
G86: Heel Muscle- EBLEX Code: Leg B001
M90: `
B91: Table 1 | L91: Table 2
B92: Product name | C92: Dice 98% Visual Lean | F92: Leg B001 | L92: Product name | M92: Pavé(Heel Muscle) | P92: Leg B002
B93: Primal weight | C93: 2.486 | D93: Percentage of Carcase | G93: =(C93/C4) -> 0.01502804913 | L93: Primal weight | M93: 2.46 | N93: Percentage of Carcase | Q93: =(M93/M4) -> 0.01534354573
B94: Price Per Kg | C94: 3.25 | L94: Price Per Kg | M94: 3.25
B95: Wholesale cost: | C95: =(C94*C93) -> 8.0795 | L95: Wholesale cost: | M95: =(M94*M93) -> 7.995
B97: Product description | C97: Eblex code | D97: Weight (Kg) | E97: Red Meat Yield % | F97: Selling price (£/Kg) | G97: Value £ | L97: Product description | M97: Eblex code | N97: Weight (Kg) | O97: Red Meat Yield % | P97: Selling price (£/Kg) | Q97: Value£
B98: Dice 98% Visual Lean | C98: DiceB001 | D98: 1.558 | E98: =(D98/C93) -> 0.6267095736 | F98: 10 | G98: =(D98*F98) -> 15.58 | L98: Pavé(Heel Muscle) | M98: Leg B002 | N98: 0.786 | O98: =(N98/M93) -> 0.3195121951 | P98: 14.86 | Q98: =(N98*P98) -> 11.67996
B99: Trim 85% Visual Lean | C99: Trim B008 | D99: 0.756 | E99: =(D99/C93) -> 0.3041029767 | F99: 7 | G99: =(D99*F99) -> 5.292 | L99: Dice 98% Visual Lean | M99: DiceB001 | N99: 0.362 | O99: =(N99/M93) -> 0.1471544715 | P99: 10 | Q99: 3.62
E100: =(D100/C93) -> 0 | G100: 0 | L100: Trim 85% Visual Lean | M100: Trim B008 | N100: 1.16 | O100: =(N100/M93) -> 0.4715447154 | P100: 7 | Q100: 8.12
E101: =(D101/C93) -> 0 | G101: 0 | O101: =(N101/M93) -> 0 | Q101: 0
E102: =(D102/C93) -> 0 | G102: 0 | O102: =(N102/M93) -> 0 | Q102: 0
E103: =(D103/C93) -> 0 | G103: 0 | O103: =(N103/M93) -> 0 | Q103: 0
E104: =(D104/C93) -> 0 | G104: 0 | O104: =(N104/M93) -> 0 | Q104: 0
E105: =(D105/C93) -> 0 | G105: 0 | O105: =(N105/M93) -> 0 | Q105: 0
E106: =(D106/C93) -> 0 | G106: 0 | O106: =(N106/M93) -> 0 | Q106: 0
E107: =(D107/C93) -> 0 | G107: 0 | O107: =(N107/M93) -> 0 | Q107: 0
E108: =(D108/C93) -> 0 | G108: 0 | O108: =(N108/M93) -> 0 | Q108: 0
E109: =(D109/C93) -> 0 | G109: 0 | O109: =(N109/M93) -> 0 | Q109: 0
C110: Total saleable meat | D110: =SUM(D98:D109) -> 2.314 | E110: =(D110/C93) -> 0.9308125503 | M110: Total saleable meat | N110: =SUM(N98:N109) -> 2.308 | O110: =(N110/M93) -> 0.9382113821
C111: Bone & Waste (Kg) | D111: 0.166 | E111: =(D111/C93) -> 0.06677393403 | M111: Bone & Waste (Kg) | N111: 0.116 | O111: =(N111/M93) -> 0.04715447154
C112: Drip/Cutting loss(Kg) | D112: =(C93-D110-D111) -> 0.006 | E112: =(D112/C93) -> 0.002413515688 | M112: Drip/Cutting loss(Kg) | N112: =(M93-N110-N111) -> 0.036 | O112: =(N112/M93) -> 0.01463414634
D114: Total Sales Value | G114: =SUM(G98:G109) -> 20.872 | N114: Total Sales Value | Q114: =SUM(Q98:Q109) -> 23.41996
D115: Gross Margin | G115: =SUM(G98:G109,-C95) -> 12.7925 | N115: Gross Margin | Q115: =SUM(Q98:Q109,-M95) -> 15.42496
D116: Gross Profit | G116: =(G115/G114) -> 0.612902453 | N116: Gross Profit | Q116: =(Q115/Q114) -> 0.6586245237
K118: Value | L118: Gross Margin | M118: Profit %
G119: Table 1 | K119: =(G114) -> 20.872 | L119: =(G115) -> 12.7925 | M119: =(G116) -> 0.612902453
G120: Table 2 | K120: =(Q114) -> 23.41996 | L120: =(Q115) -> 15.42496 | M120: =(Q116) -> 0.6586245237
G121: Increased Profit | K121: =(K120-K119) -> 2.54796 | L121: =(L120-L119) -> 2.63246 | M121: =SUM(M120-M119) -> 0.04572207065
G125: Thick Flank- EBLEX Code: Thick Flank B001
M129: `
B130: Table 1 | L130: Table 2
B131: Product name | C131: Thick Flank Joints | F131: Thick Flank B002 | L131: Product name | M131: Thick Flank Seam Cut | P131: Thick flank B005
B132: Primal weight | C132: 6.586 | D132: Percentage of Carcase | G132: =(C132/C4) -> 0.03981284457 | L132: Primal weight | M132: 6.404 | N132: Percentage of Carcase | Q132: =(M132/M4) -> 0.03994311661
B133: Price Per Kg | C133: 4.2 | L133: Price Per Kg | M133: 4.2
B134: Wholesale cost: | C134: =(C133*C132) -> 27.6612 | L134: Wholesale cost: | M134: =(M133*M132) -> 26.8968
B136: Product description | C136: Eblex code | D136: Weight (Kg) | E136: Red Meat Yield % | F136: Selling price (£/Kg) | G136: Value £ | L136: Product description | M136: Eblex code | N136: Weight (Kg) | O136: Red Meat Yield % | P136: Selling price (£/Kg) | Q136: Value£
B137: Thick Flank Joints | C137: Thick flank B002 | D137: 6.166 | E137: =(D137/C132) -> 0.9362283632 | F137: 8 | G137: =(D137*F137) -> 49.328 | L137: Centre Cut Steaks | M137: Thick Flank B005 | N137: 2.132 | O137: =(N137/M132) -> 0.3329169269 | P137: 14.86 | Q137: =(N137*P137) -> 31.68152
B138: Trim 85% Visual Lean | C138: Trim B008 | D138: 0.266 | E138: =(D138/C132) -> 0.04038870331 | F138: 7 | G138: =(D138*F138) -> 1.862 | L138: Escallops(Thick Flank) | M138: Thick Flank B005 | N138: 1.984 | O138: =(N138/M132) -> 0.309806371 | P138: 14.86 | Q138: 29.48224
E139: =(D139/C132) -> 0 | G139: 0 | L139: Pavé(Thick Flank) | M139: Thick Flank B007 | N139: 0.486 | O139: =(N139/M132) -> 0.07589006871 | P139: 14.86 | Q139: 7.22196
E140: =(D140/C132) -> 0 | G140: 0 | L140: Dice 98% Visual Lean | M140: DiceB001 | N140: 0.465 | O140: =(N140/M132) -> 0.07261086821 | P140: 10 | Q140: 4.65
E141: =(D141/C132) -> 0 | G141: 0 | L141: Trim 85% Visual Lean | M141: Trim B008 | N141: 1.138 | O141: =(N141/M132) -> 0.1777014366 | P141: 7 | Q141: 7.966
E142: =(D142/C132) -> 0 | G142: 0 | O142: =(N142/M132) -> 0 | Q142: 0
E143: =(D143/C132) -> 0 | G143: 0 | O143: =(N143/M132) -> 0 | Q143: 0
E144: =(D144/C132) -> 0 | G144: 0 | O144: =(N144/M132) -> 0 | Q144: 0
E145: =(D145/C132) -> 0 | G145: 0 | O145: =(N145/M132) -> 0 | Q145: 0
E146: =(D146/C132) -> 0 | G146: 0 | O146: =(N146/M132) -> 0 | Q146: 0
E147: =(D147/C132) -> 0 | G147: 0 | O147: =(N147/M132) -> 0 | Q147: 0
E148: =(D148/C132) -> 0 | G148: 0 | O148: =(N148/M132) -> 0 | Q148: 0
C149: Total saleable meat | D149: =SUM(D137:D148) -> 6.432 | E149: =(D149/C132) -> 0.9766170665 | M149: Total saleable meat | N149: =SUM(N137:N148) -> 6.205 | O149: =(N149/M132) -> 0.9689256715
C150: Bone & Waste (Kg) | D150: 0.148 | E150: =(D150/C132) -> 0.02247191011 | M150: Bone & Waste (Kg) | N150: 0.142 | O150: =(N150/M132) -> 0.02217364147
C151: Drip/Cutting loss(Kg) | D151: =(C132-D149-D150) -> 0.006 | E151: =(D151/C132) -> 0.0009110233829 | M151: Drip/Cutting loss(Kg) | N151: =(M132-N149-N150) -> 0.057 | O151: =(N151/M132) -> 0.008900687071
D153: Total Sales Value | G153: =SUM(G137:G148) -> 51.19 | N153: Total Sales Value | Q153: =SUM(Q137:Q148) -> 81.00172
D154: Gross Margin | G154: =SUM(G137:G148,-C134) -> 23.5288 | N154: Gross Margin | Q154: =SUM(Q137:Q148,-M134) -> 54.10492
D155: Gross Profit | G155: =(G154/G153) -> 0.4596366478 | N155: Gross Profit | Q155: =(Q154/Q153) -> 0.6679477917
K157: Value | L157: Gross Margin | M157: Profit %
G158: Table 1 | K158: =(G153) -> 51.19 | L158: =(G154) -> 23.5288 | M158: =(G155) -> 0.4596366478
G159: Table 2 | K159: =(Q153) -> 81.00172 | L159: =(Q154) -> 54.10492 | M159: =(Q155) -> 0.6679477917
G160: Increased Profit | K160: =(K159-K158) -> 29.81172 | L160: =(L159-L158) -> 30.57612 | M160: =SUM(M159-M158) -> 0.2083111439
G164: D Rump (without tail)- EBLEX Code: Rump B004
M168: `
B169: Table 1 | L169: Table 2
B170: Product name | C170: Traditional Rump Steaks | F170: Rump B006 | L170: Product name | M170: Premium Prime Rump Steak | P170: Rump B003
B171: Primal weight | C171: 5.204 | D171: Percentage of Carcase | G171: =(C171/C4) -> 0.03145855499 | L171: Primal weight | M171: 5.368 | N171: Percentage of Carcase | Q171: =(M171/M4) -> 0.03348136321
B172: Price Per Kg | C172: 6.5 | L172: Price Per Kg | M172: 6.5
B173: Wholesale cost: | C173: =(C172*C171) -> 33.826 | L173: Wholesale cost: | M173: =(M172*M171) -> 34.892
B175: Product description | C175: Eblex code | D175: Weight (Kg) | E175: Red Meat Yield % | F175: Selling price (£/Kg) | G175: Value £ | L175: Product description | M175: Eblex code | N175: Weight (Kg) | O175: Red Meat Yield % | P175: Selling price (£/Kg) | Q175: Value£
B176: Traditional Rump Steaks | C176: Rump B006 | D176: 4.984 | E176: =(D176/C171) -> 0.9577248271 | F176: 15 | G176: =(D176*F176) -> 74.76 | L176: Prime Rump Steak | M176: Rump B003 | N176: 2.402 | O176: =(N176/M171) -> 0.447466468 | P176: 17 | Q176: =(N176*P176) -> 40.834
B177: Dice 98% Visual Lean | C177: DiceB001 | E177: =(D177/C171) -> 0 | F177: 10 | G177: =(D177*F177) -> 0 | L177: Bistro Rump Steak | M177: Rump B003 | N177: 1.174 | O177: =(N177/M171) -> 0.2187034277 | P177: 23 | Q177: 27.002
B178: Trim 85% Visual Lean | C178: Trim B008 | D178: 0.152 | E178: =(D178/C171) -> 0.02920830131 | F178: 7 | G178: 1.064 | L178: Picanha Steak | M178: Rump B013 | N178: 0.92 | O178: =(N178/M171) -> 0.1713859911 | P178: 17 | Q178: 15.64
E179: =(D179/C171) -> 0 | G179: 0 | L179: Rump Burger Trim | N179: 0.546 | O179: =(N179/M171) -> 0.1017138599 | P179: 15 | Q179: 8.19
E180: =(D180/C171) -> 0 | G180: 0 | O180: =(N180/M171) -> 0 | Q180: 0
E181: =(D181/C171) -> 0 | G181: 0 | O181: =(N181/M171) -> 0 | Q181: 0
E182: =(D182/C171) -> 0 | G182: 0 | O182: =(N182/M171) -> 0 | Q182: 0
E183: =(D183/C171) -> 0 | G183: 0 | O183: =(N183/M171) -> 0 | Q183: 0
E184: =(D184/C171) -> 0 | G184: 0 | O184: =(N184/M171) -> 0 | Q184: 0
E185: =(D185/C171) -> 0 | G185: 0 | O185: =(N185/M171) -> 0 | Q185: 0
E186: =(D186/C171) -> 0 | G186: 0 | O186: =(N186/M171) -> 0 | Q186: 0
E187: =(D187/C171) -> 0 | G187: 0 | O187: =(N187/M171) -> 0 | Q187: 0
C188: Total saleable meat | D188: =SUM(D176:D187) -> 5.136 | E188: =(D188/C171) -> 0.9869331284 | M188: Total saleable meat | N188: =SUM(N176:N187) -> 5.042 | O188: =(N188/M171) -> 0.9392697466
C189: Bone & Waste (Kg) | D189: 0.062 | E189: =(D189/C171) -> 0.01191391238 | M189: Bone & Waste (Kg) | N189: 0.324 | O189: =(N189/M171) -> 0.06035767511
C190: Drip/Cutting loss(Kg) | D190: =(C171-D188-D189) -> 0.006 | E190: =(D190/C171) -> 0.001152959262 | M190: Drip/Cutting loss(Kg) | N190: =(M171-N188-N189) -> 0.002 | O190: =(N190/M171) -> 0.0003725782414
D192: Total Sales Value | G192: =SUM(G176:G187) -> 75.824 | N192: Total Sales Value | Q192: =SUM(Q176:Q187) -> 91.666
D193: Gross Margin | G193: =SUM(G176:G187,-C173) -> 41.998 | N193: Gross Margin | Q193: =SUM(Q176:Q187,-M173) -> 56.774
D194: Gross Profit | G194: =(G193/G192) -> 0.553887951 | N194: Gross Profit | Q194: =(Q193/Q192) -> 0.6193572317
K196: Value | L196: Gross Margin | M196: Profit %
G197: Table 1 | K197: =(G192) -> 75.824 | L197: =(G193) -> 41.998 | M197: =(G194) -> 0.553887951
G198: Table 2 | K198: =(Q192) -> 91.666 | L198: =(Q193) -> 56.774 | M198: =(Q194) -> 0.6193572317
G199: Increased Profit | K199: =(K198-K197) -> 15.842 | L199: =(L198-L197) -> 14.776 | M199: =SUM(M198-M197) -> 0.06546928064
G203: Rump Tail- EBLEX Code: Rump B012
M207: `
B208: Table 1 | L208: Table 2
B209: Product name | C209: Dice 98% Visual Lean | F209: Dice B001 | L209: Product name | M209: Rump Tail/Tri Tip Mini Joint | P209: Rump B020
B210: Primal weight | C210: 1.67 | D210: Percentage of Carcase | G210: =(C210/C4) -> 0.01009527034 | L210: Primal weight | M210: 1.564 | N210: Percentage of Carcase | Q210: =(M210/M4) -> 0.009755002245
B211: Price Per Kg | C211: 5 | L211: Price Per Kg | M211: 5
B212: Wholesale cost: | C212: =(C211*C210) -> 8.35 | L212: Wholesale cost: | M212: =(M211*M210) -> 7.82
B214: Product description | C214: Eblex code | D214: Weight (Kg) | E214: Red Meat Yield % | F214: Selling price (£/Kg) | G214: Value £ | L214: Product description | M214: Eblex code | N214: Weight (Kg) | O214: Red Meat Yield % | P214: Selling price (£/Kg) | Q214: Value£
B215: Dice 98% Visual Lean | C215: Dice B001 | D215: 1.362 | E215: =(D215/C210) -> 0.8155688623 | F215: 10 | G215: =(D215*F215) -> 13.62 | L215: Tri Tip Mini Joint | M215: Rump B020 | N215: 1.04 | O215: =(N215/M210) -> 0.6649616368 | P215: 11.5 | Q215: =(N215*P215) -> 11.96
B216: Trim 85% Visual Lean | C216: Trim B008 | D216: 0.184 | E216: =(D216/C210) -> 0.1101796407 | F216: 7 | G216: =(D216*F216) -> 1.288 | L216: Dice 98% Visual Lean | M216: DiceB001 | N216: 0.274 | O216: =(N216/M210) -> 0.1751918159 | P216: 10 | Q216: 2.74
E217: =(D217/C210) -> 0 | G217: 0 | L217: Trim 85% Visual Lean | M217: Trim B008 | N217: 0.174 | O217: =(N217/M210) -> 0.1112531969 | P217: 7 | Q217: 1.218
E218: =(D218/C210) -> 0 | G218: 0 | O218: =(N218/M210) -> 0 | Q218: 0
E219: =(D219/C210) -> 0 | G219: 0 | O219: =(N219/M210) -> 0 | Q219: 0
E220: =(D220/C210) -> 0 | G220: 0 | O220: =(N220/M210) -> 0 | Q220: 0
E221: =(D221/C210) -> 0 | G221: 0 | O221: =(N221/M210) -> 0 | Q221: 0
E222: =(D222/C210) -> 0 | G222: 0 | O222: =(N222/M210) -> 0 | Q222: 0
E223: =(D223/C210) -> 0 | G223: 0 | O223: =(N223/M210) -> 0 | Q223: 0
E224: =(D224/C210) -> 0 | G224: 0 | O224: =(N224/M210) -> 0 | Q224: 0
E225: =(D225/C210) -> 0 | G225: 0 | O225: =(N225/M210) -> 0 | Q225: 0
E226: =(D226/C210) -> 0 | G226: 0 | O226: =(N226/M210) -> 0 | Q226: 0
C227: Total saleable meat | D227: =SUM(D215:D226) -> 1.546 | E227: =(D227/C210) -> 0.925748503 | M227: Total saleable meat | N227: =SUM(N215:N226) -> 1.488 | O227: =(N227/M210) -> 0.9514066496
C228: Bone & Waste (Kg) | D228: 0.124 | E228: =(D228/C210) -> 0.07425149701 | M228: Bone & Waste (Kg) | N228: 0.054 | O228: =(N228/M210) -> 0.03452685422
C229: Drip/Cutting loss(Kg) | D229: =(C210-D227-D228) -> -1.110223025e-16 | E229: =(D229/C210) -> -6.648042064e-17 | M229: Drip/Cutting loss(Kg) | N229: =(M210-N227-N228) -> 0.022 | O229: =(N229/M210) -> 0.01406649616
D231: Total Sales Value | G231: =SUM(G215:G226) -> 14.908 | N231: Total Sales Value | Q231: =SUM(Q215:Q226) -> 15.918
D232: Gross Margin | G232: =SUM(G215:G226,-C212) -> 6.558 | N232: Gross Margin | Q232: =SUM(Q215:Q226,-M212) -> 8.098
D233: Gross Profit | G233: =(G232/G231) -> 0.4398980413 | N233: Gross Profit | Q233: =(Q232/Q231) -> 0.5087322528
K235: Value | L235: Gross Margin | M235: Profit %
G236: Table 1 | K236: =(G231) -> 14.908 | L236: =(G232) -> 6.558 | M236: =(G233) -> 0.4398980413
G237: Table 2 | K237: =(Q231) -> 15.918 | L237: =(Q232) -> 8.098 | M237: =(Q233) -> 0.5087322528
G238: Increased Profit | K238: =(K237-K236) -> 1.01 | L238: =(L237-L236) -> 1.54 | M238: =SUM(M237-M236) -> 0.06883421148
G242: Striploin- EBLEX Code: Sirloin B002
M246: `
B247: Table 1 | L247: Table 2
B248: Product name | C248: Sirloin Steak standard trim | F248: Sirloin B006 | L248: Product name | M248: Bone -in Porterhouse Steak | P248: Sirloin B017
B249: Primal weight | C249: 7.388 | D249: Percentage of Carcase | G249: =(C249/C4) -> 0.04466099236 | L249: Primal weight | M249: 11.33 | N249: Percentage of Carcase | Q249: =(M249/M4) -> 0.07066763136
B250: Price Per Kg | C250: 11 | L250: Price Per Kg | M250: 8.3
B251: Wholesale cost: | C251: =(C250*C249) -> 81.268 | L251: Wholesale cost: | M251: =(M250*M249) -> 94.039
B253: Product description | C253: Eblex code | D253: Weight (Kg) | E253: Red Meat Yield % | F253: Selling price (£/Kg) | G253: Value £ | L253: Product description | M253: Eblex code | N253: Weight (Kg) | O253: Red Meat Yield % | P253: Selling price (£/Kg) | Q253: Value£
B254: Sirloin Steak standard | C254: Sirloin B006 | D254: 6.83 | E254: =(D254/C249) -> 0.9244721169 | F254: 17.62 | G254: =(D254*F254) -> 120.3446 | L254: Porterhouse Steak | M254: Sirloin B017 | N254: 3.968 | O254: =(N254/M249) -> 0.3502206531 | P254: 19.34 | Q254: =(N254*P254) -> 76.74112
B255: Trim 85% Visual Lean | C255: Trim B008 | D255: 0.39 | E255: =(D255/C249) -> 0.05278830536 | F255: 7 | G255: =(D255*F255) -> 2.73 | L255: Bone in Sirloin Steak | M255: Sirloin B018 | N255: 4.786 | O255: =(N255/M249) -> 0.4224183583 | P255: 19.34 | Q255: 92.56124
E256: =(D256/C249) -> 0 | G256: 0 | L256: Stir Fry of Beef | M256: Stir Fry B004 | N256: 0.56 | O256: =(N256/M249) -> 0.04942630185 | P256: 15 | Q256: 8.4
E257: =(D257/C249) -> 0 | G257: 0 | L257: Trim 85% Visual Lean | M257: Trim B008 | N257: 0.21 | O257: =(N257/M249) -> 0.0185348632 | P257: 7 | Q257: 1.47
E258: =(D258/C249) -> 0 | G258: 0 | O258: =(N258/M249) -> 0 | Q258: 0
E259: =(D259/C249) -> 0 | G259: 0 | O259: =(N259/M249) -> 0 | Q259: 0
E260: =(D260/C249) -> 0 | G260: 0 | O260: =(N260/M249) -> 0 | Q260: 0
... 604 more rows
